{"text_format":"1","workbook":"xlsx","n_sheets":10,"sheets":["ご利用にあたって","手書用フォーム","リスト","入力シート","印刷シート","入力シート 見本","印刷シート 見本","変更履歴","コピペ用","TO　DOと改善点"],"not_rendered":{"charts":0,"images":12,"macros":1,"external_links":0,"defined_names":6,"comments":0,"pivot_tables":0},"unopened":[],"bounds":{"document_bytes":16777216,"sheet_cells":100000,"rows_first":2000,"rows_last":500,"rows_between":2000,"halvings":0,"cell_chars":16384,"cell_head_chars":4096},"cells_cut":0,"cells_raw":0,"read":"whole","date_system":"1900"}

{"sheet":"ご利用にあたって","index":0,"n_rows":32,"n_cols":2,"rows_kept":32,"cut":false,"hidden":false,"merged":[[23,1,23,6],[27,1,27,5],[31,1,31,4],[1,1,1,9],[3,1,14,9],[17,1,17,6],[19,1,19,6],[21,1,21,6]]}
[]
[null,"外国送金取引をご利用のお客様へ"]
[]
[null,"京都中央信用金庫では、「外国為替及び外国貿易法」(以下「外為法」といいます。)および米国OFAC規制等の各国経済制裁関連法令・規制（以下「各国経済制裁関連法」といいます。）に基づき、マネー・ローンダリングおよびテロ資金供与を防止する態勢の強化に取り組んでおります。\n\nつきましては、お客様からご依頼を受けた外国為替取引が、「外為法」および「各国経済制裁関連法」の対象取引に該当しないことを確認させていただくため、お取引内容のご説明や確認資料のご提示などをお願いし、詳細な内容をご確認させていただく場合がございます。\n\nまた、当金庫からの依頼にご対応いただけない場合や、確認させていただいた内容によっては、当金庫の判断にてお取引をお断りする場合がございますので、あらかじめご了承ください。"]
[]
[]
[]
[]
[]
[]
[]
[]
[]
[]
[]
[null,"◎「外国為替及び外国貿易法」への対応について"]
[null,"・「外国為替及び外国貿易法」への対応について"]
[null,"https://www.chushin.co.jp/common/pdf/customers_boeki.pdf"]
[null,"・ 「米国OFAC規制」への対応について"]
[null,"https://www.chushin.co.jp/common/pdf/customers_ofac.pdf"]
[null,"・ご来店時にご用意いただくもの、取引内容の詳細を確認するための資料について"]
[null,"https://www.chushin.co.jp/common/pdf/customers_remittance.pdf"]
[null,"・外国送金（被仕向送金）手数料一覧表 兼 受取金融機関指定方法"]
[null,"https://www.chushin.co.jp/common/pdf/customers_uketori.pdf"]
[null,"外国送金における個人情報の取り扱いについて"]
[null,"外国送金をご依頼される際には諸外国の個人情報保護制度等について以下の"]
[null,"全国銀行協会ウェブサイトに掲載されておりますので、事前にご確認ください。"]
[null,"https://www.zenginkyo.or.jp/article/tag-f/17491/"]
[]
[null,"◎「外国送金取引規定」"]
[null,"当金庫ホームページの規定一覧よりご確認ください"]
[null,"https://www.chushin.co.jp/regulation/"]

{"sheet":"手書用フォーム","index":1,"n_rows":50,"n_cols":99,"rows_kept":50,"cut":false,"hidden":true,"merged":[[0,0,0,22],[0,23,0,73],[2,0,2,54],[2,67,2,99],[3,0,3,54],[3,67,3,99],[4,0,5,66],[4,67,4,99],[5,67,5,79],[5,80,5,99],[6,0,6,45],[6,67,6,79],[6,80,6,99],[7,0,9,66],[10,0,10,54],[10,67,10,99],[11,0,11,54],[11,94,11,99],[12,0,12,66],[13,55,13,66],[13,67,13,99],[14,0,16,54],[14,55,16,66],[14,67,14,99],[16,67,16,99],[25,0,25,54],[17,0,17,54],[17,67,17,74],[17,77,17,97],[18,0,18,66],[19,0,19,66],[20,0,20,66],[20,67,20,71],[20,75,20,86],[21,0,21,54],[22,0,23,66],[24,0,24,54],[24,67,24,71],[24,76,24,86],[38,0,38,29],[38,30,38,32],[38,33,38,43],[38,44,38,65],[26,0,27,66],[28,55,28,66],[29,0,31,54],[29,55,31,66],[32,0,32,54],[33,0,34,66],[35,0,35,54],[36,0,36,12],[36,32,36,44],[37,0,37,31],[37,32,37,66],[49,0,50,66],[39,0,39,54],[40,0,40,20],[40,21,40,44],[40,45,40,66],[41,0,41,20],[41,21,41,44],[41,45,41,66],[42,0,42,66],[43,0,43,66],[45,0,46,3],[45,4,46,66],[47,0,48,66]]}
["京都中央信用金庫 御中",null,null,null,null,null,null,null,null,null,null,null,null,null,null,null,null,null,null,null,null,null,null,"外国送金依頼書 兼 告知書"]
[]
["ご依頼人様情報",null,null,null,null,null,null,null,null,null,null,null,null,null,null,null,null,null,null,null,null,null,null,null,null,null,null,null,null,null,null,null,null,null,null,null,null,null,null,null,null,null,null,null,null,null,null,null,null,null,null,null,null,null,null,null,null,null,null,null,null,null,null,null,null,null,null,"ご依頼日/ご来店日"]
["ご依頼人様英文名\n"]
[null,null,null,null,null,null,null,null,null,null,null,null,null,null,null,null,null,null,null,null,null,null,null,null,null,null,null,null,null,null,null,null,null,null,null,null,null,null,null,null,null,null,null,null,null,null,null,null,null,null,null,null,null,null,null,null,null,null,null,null,null,null,null,null,null,null,null,"送金情報"]
[null,null,null,null,null,null,null,null,null,null,null,null,null,null,null,null,null,null,null,null,null,null,null,null,null,null,null,null,null,null,null,null,null,null,null,null,null,null,null,null,null,null,null,null,null,null,null,null,null,null,null,null,null,null,null,null,null,null,null,null,null,null,null,null,null,null,null,"送金種類",null,null,null,null,null,null,null,null,null,null,null,null,"電信送金"]
["ご依頼人様英文住所",null,null,null,null,null,null,null,null,null,null,null,null,null,null,null,null,null,null,null,null,null,null,null,null,null,null,null,null,null,null,null,null,null,null,null,null,null,null,null,null,null,null,null,null,null,null,null,null,null,null,null,null,null,null,null,null,null,null,null,null,null,null,null,null,null,null,"受取人支払方法",null,null,null,null,null,null,null,null,null,null,null,null,"通知払"]
[null,null,null,null,null,null,null,null,null,null,null,null,null,null,null,null,null,null,null,null,null,null,null,null,null,null,null,null,null,null,null,null,null,null,null,null,null,null,null,null,null,null,null,null,null,null,null,null,null,null,null,null,null,null,null,null,null,null,null,null,null,null,null,null,null,null,null,"送金通貨",null,null,null,null,null,null,"送金金額"]
[]
[]
["お受取人様銀行情報",null,null,null,null,null,null,null,null,null,null,null,null,null,null,null,null,null,null,null,null,null,null,null,null,null,null,null,null,null,null,null,null,null,null,null,null,null,null,null,null,null,null,null,null,null,null,null,null,null,null,null,null,null,null,null,null,null,null,null,null,null,null,null,null,null,null,"円貨相当額を送金してください。"]
["銀行名・支店名",null,null,null,null,null,null,null,null,null,null,null,null,null,null,null,null,null,null,null,null,null,null,null,null,null,null,null,null,null,null,null,null,null,null,null,null,null,null,null,null,null,null,null,null,null,null,null,null,null,null,null,null,null,null,null,null,null,null,null,null,null,null,null,null,null,null,"通貨【　　 　　　　】",null,null,null,null,null,null,null,null,null,null,null,null,null,null,null,null,null,null,null,null,null,null,null,null,null,null,"円相当"]
[null,null,null,null,null,null,null,null,null,null,null,null,null,null,null,null,null,null,null,null,null,null,null,null,null,null,null,null,null,null,null,null,null,null,null,null,null,null,null,null,null,null,null,null,null,null,null,null,null,null,null,null,null,null,null,null,null,null,null,null,null,null,null,null,null,null,null,null,"□手数料「込」　　　□手数料「別」"]
["住所",null,null,null,null,null,null,null,null,null,null,null,null,null,null,null,null,null,null,null,null,null,null,null,null,null,null,null,null,null,null,null,null,null,null,null,null,null,null,null,null,null,null,null,null,null,null,null,null,null,null,null,null,null,null,"国名",null,null,null,null,null,null,null,null,null,null,null,"支払銀行手数料"]
[null,null,null,null,null,null,null,null,null,null,null,null,null,null,null,null,null,null,null,null,null,null,null,null,null,null,null,null,null,null,null,null,null,null,null,null,null,null,null,null,null,null,null,null,null,null,null,null,null,null,null,null,null,null,null,null,null,null,null,null,null,null,null,null,null,null,null,"　□送金受取人負担　　　　□ご依頼人負担"]
[null,null,null,null,null,null,null,null,null,null,null,null,null,null,null,null,null,null,null,null,null,null,null,null,null,null,null,null,null,null,null,null,null,null,null,null,null,null,null,null,null,null,null,null,null,null,null,null,null,null,null,null,null,null,null,null,null,null,null,null,null,null,null,null,null,null,null,"代金決済方法"]
[null,null,null,null,null,null,null,null,null,null,null,null,null,null,null,null,null,null,null,null,null,null,null,null,null,null,null,null,null,null,null,null,null,null,null,null,null,null,null,null,null,null,null,null,null,null,null,null,null,null,null,null,null,null,null,null,null,null,null,null,null,null,null,null,null,null,null,"□円建　□円貨(スポット)□外貨　□円貨(為替予約)"]
["銀行コード情報(SWIFT、ABA,BIC等)",null,null,null,null,null,null,null,null,null,null,null,null,null,null,null,null,null,null,null,null,null,null,null,null,null,null,null,null,null,null,null,null,null,null,null,null,null,null,null,null,null,null,null,null,null,null,null,null,null,null,null,null,null,null,null,null,null,null,null,null,null,null,null,null,null,null,"予約番号",null,null,null,null,null,null,null,"(",null,{"$f":"入力シート!K88","v":0},null,null,null,null,null,null,null,null,null,null,null,null,null,null,null,null,null,null,null,null,")"]
[null,null,null,null,null,null,null,null,null,null,null,null,null,null,null,null,null,null,null,null,null,null,null,null,null,null,null,null,null,null,null,null,null,null,null,null,null,null,null,null,null,null,null,null,null,null,null,null,null,null,null,null,null,null,null,null,null,null,null,null,null,null,null,null,null,null,null,"送金資金お引落し口座",null,null,null,null,null,null,null,null,null,null,null,null,null,"□円口座　□外貨(　　　　　　)"]
["経由銀行",null,null,null,null,null,null,null,null,null,null,null,null,null,null,null,null,null,null,null,null,null,null,null,null,null,null,null,null,null,null,null,null,null,null,null,null,null,null,null,null,null,null,null,null,null,null,null,null,null,null,null,null,null,null,null,null,null,null,null,null,null,null,null,null,null,null,"店番　",null,null,null,null,null,null,"口座番号",null,null,null,null,null,null,null,null,null,null,null,null,null,null,null,"口座種類"]
[null,null,null,null,null,null,null,null,null,null,null,null,null,null,null,null,null,null,null,null,null,null,null,null,null,null,null,null,null,null,null,null,null,null,null,null,null,null,null,null,null,null,null,null,null,null,null,null,null,null,null,null,null,null,null,null,null,null,null,null,null,null,null,null,null,null,null,null,null,null,null,null,null,null,null,null,null,null,null,null,null,null,null,null,null,null,null,null,null,"□普通　□当座"]
["お受取人様口座番号(A/C NO.)　※IBAN採用地域(欧州等)についてはIBAN",null,null,null,null,null,null,null,null,null,null,null,null,null,null,null,null,null,null,null,null,null,null,null,null,null,null,null,null,null,null,null,null,null,null,null,null,null,null,null,null,null,null,null,null,null,null,null,null,null,null,null,null,null,null,null,null,null,null,null,null,null,null,null,null,null,null,"通貨"]
[null,null,null,null,null,null,null,null,null,null,null,null,null,null,null,null,null,null,null,null,null,null,null,null,null,null,null,null,null,null,null,null,null,null,null,null,null,null,null,null,null,null,null,null,null,null,null,null,null,null,null,null,null,null,null,null,null,null,null,null,null,null,null,null,null,null,null,"手数料引お引落し口座"]
[null,null,null,null,null,null,null,null,null,null,null,null,null,null,null,null,null,null,null,null,null,null,null,null,null,null,null,null,null,null,null,null,null,null,null,null,null,null,null,null,null,null,null,null,null,null,null,null,null,null,null,null,null,null,null,null,null,null,null,null,null,null,null,null,null,null,null,"店番",null,null,null,null,null,null,null,"口座番号",null,null,null,null,null,null,null,null,null,null,null,null,null,"口座種類"]
["お受取人様情報",null,null,null,null,null,null,null,null,null,null,null,null,null,null,null,null,null,null,null,null,null,null,null,null,null,null,null,null,null,null,null,null,null,null,null,null,null,null,null,null,null,null,null,null,null,null,null,null,null,null,null,null,null,null,null,null,null,null,null,null,null,null,null,null,null,null,null,null,null,null,null,null,null,null,null,null,null,null,null,null,null,null,null,null,null,null,null,null,"□普通　□当座"]
["お受取人名"]
[]
[]
["お受取人住所",null,null,null,null,null,null,null,null,null,null,null,null,null,null,null,null,null,null,null,null,null,null,null,null,null,null,null,null,null,null,null,null,null,null,null,null,null,null,null,null,null,null,null,null,null,null,null,null,null,null,null,null,null,null,"国名"]
[]
[]
[]
["お受取人への連絡事項"]
[]
[]
["ご送金目的　　□輸入　□仲介貿易　□貿易外"]
["英語",null,null,null,null,null,null,null,null,null,null,null,null,null,null,null,null,null,null,null,null,null,null,null,null,null,null,null,null,null,null,null,"日本語"]
[]
["外国為替及び外国貿易法による許可等　要",null,null,null,null,null,null,null,null,null,null,null,null,null,null,null,null,null,null,null,null,null,null,null,null,null,null,null,null,null,null,null,null,"許可番号・日付",null,null,null,null,null,null,null,null,null,null,{"$f":"入力シート!P71","v":0}]
["送金目的が輸入もしくは仲介貿易取引の場合、以下もご記入ください。"]
["原産地(国名)",null,null,null,null,null,null,null,null,null,null,null,null,null,null,null,null,null,null,null,null,"船積地(都市名)",null,null,null,null,null,null,null,null,null,null,null,null,null,null,null,null,null,null,null,null,null,null,null,"仕向地(都市名)"]
[]
["金融機関への連絡事項"]
[]
[]
["□",null,null,null,"「外国為替及び外国貿易法」の北朝鮮・イラン・ウクライナ情勢関連規制等及び「米国OFAC規制」等の各国経済制裁関連法令・規制に該当しないことを表明します。"]
[]
["規制の内容は京都中央信用金庫ホームページの「外国送金等外国為替取引をご利用のお客様へ」に掲載しています。　\n掲載場所：https://www.chushin.co.jp/business/overseas/customers"]
[]
["貴金庫における当方名義の上記口座から、送金資金および諸手数料を貴金庫所定の日に引落してください。この取扱いにあたり、当座勘定規定、またはその他の預金規定にかかわらず、当座小切手または払戻請求書は提出しません。"]

{"sheet":"リスト","index":2,"n_rows":241,"n_cols":12,"rows_kept":241,"cut":false,"hidden":true,"merged":[]}
[]
[]
[]
[null,null,"日本円","JPY"]
[null,null,"アメリカドル","USD",null,null,"海外向電信送金"]
[null,null,"ユーロ","EUR",null,null,"国内他行宛電信送金"]
[null,null,"イギリスポンド","STG",null,null,"自店送金"]
[null,null,"カナダドル","CAD",null,null,"本支店宛送金"]
[null,null,"スイスフラン","CHF"]
[null,null,"スウェーデンクローネ","SEK"]
[null,null,"デンマーククローネ","DKK"]
[null,null,"オーストラリアドル","AUD"]
[null,null,"人民元","CNY"]
[null,null,"ホンコンドル","HKD"]
[null,null,"ニュージーランドドル","NZD"]
[null,null,"韓国ウォン","KRW"]
[null,null,"シンガポールドル","SGD","手数料「込」"]
[null,null,"タイバーツ","THB","手数料「別」"]
[]
[null,"送金通貨①",{"$f":"VLOOKUP(入力シート!P7,$C4:$D18,2,FALSE)","v":{"$error":"#N/A"}}]
[null,"送金通貨②",{"$f":"VLOOKUP(入力シート!P11,$C5:$D19,2,FALSE)","v":{"$error":"#N/A"}}]
[null,"引落口座通貨",{"$f":"VLOOKUP(入力シート!P84,$C4:$D19,2,FALSE)","v":{"$error":"#N/A"}},null,"普通預金"]
[null,"銀行国",{"$f":"VLOOKUP(入力シート!P35,$C$32:$D$241,2,FALSE)","v":{"$error":"#N/A"}},null,"当座預金"]
[null,"受取人国",{"$f":"VLOOKUP(入力シート!P52,$C$32:$D$241,2,FALSE)","v":{"$error":"#N/A"}},null,"その他"]
[null,null,null,null,"送金受取人負担",null,"円建"]
[null,null,null,null,"ご依頼人負担",null,"円貨(スポット)"]
[null,null,null,null,null,null,"外貨",null,null,"JPN ","日本 ","Japan"]
[null,null,null,null,"輸入",null,"円貨(為替予約)",null,null,"CHN ","中国","China"]
[null,null,null,null,"仲介貿易",null,null,null,null,"TWN ","台湾","Taiwan"]
[null,null,null,null,"貿易外",null,null,null,null,"HKG ","香港 ","Hong Kong"]
[null,null,null,null,null,null,null,null,null,"KOR ","大韓民国 ","Korea, Republic of"]
[null,"JPN ","日本 ","Japan",null,null,null,null,null,"ISL ","アイスランド ","Iceland"]
[null,"CHN ","中国","China",null,null,null,null,null,"IRL ","アイルランド ","Ireland"]
[null,"TWN ","台湾","Taiwan",null,null,null,null,null,"AZE ","アゼルバイジャン ","Azerbaijan"]
[null,"HKG ","香港 ","Hong Kong",null,null,null,null,null,"AFG ","アフガニスタン ","Afghanistan"]
[null,"KOR ","大韓民国 ","South　Korea",null,null,null,null,null,"USA ","アメリカ合衆国 ","United States"]
[null,"ISL ","アイスランド ","Iceland",null,null,null,null,null,"VIR ","アメリカ領ヴァージン諸島 ","Virgin Islands, U.S."]
[null,"IRL ","アイルランド ","Ireland",null,null,null,null,null,"ASM ","アメリカ領サモア ","American Samoa"]
[null,"AZE ","アゼルバイジャン ","Azerbaijan",null,null,null,null,null,"ARE ","アラブ首長国連邦 ","United Arab Emirates"]
[null,"AFG ","アフガニスタン ","Afghanistan",null,null,null,null,null,"DZA ","アルジェリア ","Algeria"]
[null,"USA ","アメリカ合衆国 ","United States",null,null,null,null,null,"ARG ","アルゼンチン ","Argentina"]
[null,"VIR ","アメリカ領ヴァージン諸島 ","Virgin Islands, U.S.",null,null,null,null,null,"ABW","アルバ ","Aruba"]
[null,"ASM ","アメリカ領サモア ","American Samoa",null,null,null,null,null,"ALB ","アルバニア ","Albania"]
[null,"ARE ","アラブ首長国連邦 ","United Arab Emirates",null,null,null,null,null,"ARM ","アルメニア ","Armenia"]
[null,"DZA ","アルジェリア ","Algeria",null,null,null,null,null,"AIA ","アンギラ ","Anguilla"]
[null,"ARG ","アルゼンチン ","Argentina",null,null,null,null,null,"AGO ","アンゴラ ","Angola"]
[null,"ABW","アルバ ","Aruba",null,null,null,null,null,"ATG ","アンティグア・バーブーダ ","Antigua and Barbuda"]
[null,"ALB ","アルバニア ","Albania",null,null,null,null,null,"AND ","アンドラ ","Andorra"]
[null,"ARM ","アルメニア ","Armenia",null,null,null,null,null,"YEM ","イエメン ","Yemen"]
[null,"AIA ","アンギラ ","Anguilla",null,null,null,null,null,"GBR ","イギリス ","United Kingdom"]
[null,"AGO ","アンゴラ ","Angola",null,null,null,null,null,"VGB ","イギリス領ヴァージン諸島 ","Virgin Islands, British"]
[null,"ATG ","アンティグア・バーブーダ ","Antigua and Barbuda",null,null,null,null,null,"ISR ","イスラエル ","Israel"]
[null,"AND ","アンドラ ","Andorra",null,null,null,null,null,"ITA ","イタリア ","Italy"]
[null,"YEM ","イエメン ","Yemen",null,null,null,null,null,"IRQ ","イラク ","Iraq"]
[null,"GBR ","イギリス ","United Kingdom",null,null,null,null,null,"IRN ","イラン・イスラム共和国 ","Iran, Islamic Republic of"]
[null,"VGB ","イギリス領ヴァージン諸島 ","Virgin Islands, British",null,null,null,null,null,"IND ","インド ","India"]
[null,"ISR ","イスラエル ","Israel",null,null,null,null,null,"IDN ","インドネシア ","Indonesia"]
[null,"ITA ","イタリア ","Italy",null,null,null,null,null,"UGA ","ウガンダ ","Uganda"]
[null,"IRQ ","イラク ","Iraq",null,null,null,null,null,"UKR ","ウクライナ ","Ukraine"]
[null,"IRN ","イラン・イスラム共和国 ","Iran, Islamic Republic of",null,null,null,null,null,"UZB ","ウズベキスタン ","Uzbekistan"]
[null,"IND ","インド ","India",null,null,null,null,null,"URY ","ウルグアイ ","Uruguay"]
[null,"IDN ","インドネシア ","Indonesia",null,null,null,null,null,"ECU ","エクアドル ","Ecuador"]
[null,"UGA ","ウガンダ ","Uganda",null,null,null,null,null,"EGY ","エジプト ","Egypt"]
[null,"UKR ","ウクライナ ","Ukraine",null,null,null,null,null,"EST ","エストニア ","Estonia"]
[null,"UZB ","ウズベキスタン ","Uzbekistan",null,null,null,null,null,"SWZ ","エスワティニ ","Eswatini"]
[null,"URY ","ウルグアイ ","Uruguay",null,null,null,null,null,"ETH ","エチオピア ","Ethiopia"]
[null,"ECU ","エクアドル ","Ecuador",null,null,null,null,null,"ERI ","エリトリア ","Eritrea"]
[null,"EGY ","エジプト ","Egypt",null,null,null,null,null,"SLV ","エルサルバドル ","El Salvador"]
[null,"EST ","エストニア ","Estonia",null,null,null,null,null,"AUS ","オーストラリア ","Australia"]
[null,"SWZ ","エスワティニ ","Eswatini",null,null,null,null,null,"AUT ","オーストリア ","Austria"]
[null,"ETH ","エチオピア ","Ethiopia",null,null,null,null,null,"OMN ","オマーン ","Oman"]
[null,"ERI ","エリトリア ","Eritrea",null,null,null,null,null,"NLD ","オランダ ","Netherlands"]
[null,"SLV ","エルサルバドル ","El Salvador",null,null,null,null,null,"ANT ","オランダ領アンティル ","Netherlands Antilles"]
[null,"AUS ","オーストラリア ","Australia",null,null,null,null,null,"GHA ","ガーナ ","Ghana"]
[null,"AUT ","オーストリア ","Austria",null,null,null,null,null,"CPV ","カーボベルデ ","Cape Verde"]
[null,"OMN ","オマーン ","Oman",null,null,null,null,null,"GUY ","ガイアナ ","Guyana"]
[null,"NLD ","オランダ ","Netherlands",null,null,null,null,null,"KAZ ","カザフスタン ","Kazakhstan"]
[null,"ANT ","オランダ領アンティル ","Netherlands Antilles",null,null,null,null,null,"QAT ","カタール ","Qatar"]
[null,"GHA ","ガーナ ","Ghana",null,null,null,null,null,"CAN ","カナダ ","Canada"]
[null,"CPV ","カーボベルデ ","Cape Verde",null,null,null,null,null,"GAB ","ガボン ","Gabon"]
[null,"GUY ","ガイアナ ","Guyana",null,null,null,null,null,"CMR ","カメルーン ","Cameroon"]
[null,"KAZ ","カザフスタン ","Kazakhstan",null,null,null,null,null,"GMB ","ガンビア ","Gambia"]
[null,"QAT ","カタール ","Qatar",null,null,null,null,null,"KHM ","カンボジア ","Cambodia"]
[null,"CAN ","カナダ ","Canada",null,null,null,null,null,"GIN ","ギニア ","Guinea"]
[null,"GAB ","ガボン ","Gabon",null,null,null,null,null,"GNB ","ギニアビサウ ","Guinea-Bissau"]
[null,"CMR ","カメルーン ","Cameroon",null,null,null,null,null,"CYP ","キプロス ","Cyprus"]
[null,"GMB ","ガンビア ","Gambia",null,null,null,null,null,"CUB ","キューバ ","Cuba"]
[null,"KHM ","カンボジア ","Cambodia",null,null,null,null,null,"GRC ","ギリシャ ","Greece"]
[null,"GIN ","ギニア ","Guinea",null,null,null,null,null,"KIR ","キリバス ","Kiribati"]
[null,"GNB ","ギニアビサウ ","Guinea-Bissau",null,null,null,null,null,"KGZ ","キルギス ","Kyrgyzstan"]
[null,"CYP ","キプロス ","Cyprus",null,null,null,null,null,"GTM ","グアテマラ ","Guatemala"]
[null,"CUB ","キューバ ","Cuba",null,null,null,null,null,"GLP ","グアドループ ","Guadeloupe"]
[null,"GRC ","ギリシャ ","Greece",null,null,null,null,null,"GUM ","グアム ","Guam"]
[null,"KIR ","キリバス ","Kiribati",null,null,null,null,null,"KWT ","クウェート ","Kuwait"]
[null,"KGZ ","キルギス ","Kyrgyzstan",null,null,null,null,null,"GRL ","グリーンランド ","Greenland"]
[null,"GTM ","グアテマラ ","Guatemala",null,null,null,null,null,"GRD ","グレナダ ","Grenada"]
[null,"GLP ","グアドループ ","Guadeloupe",null,null,null,null,null,"HRV ","クロアチア ","Croatia"]
[null,"GUM ","グアム ","Guam",null,null,null,null,null,"CYM ","ケイマン諸島 ","Cayman Islands"]
[null,"KWT ","クウェート ","Kuwait",null,null,null,null,null,"KEN ","ケニア ","Kenya"]
[null,"GRL ","グリーンランド ","Greenland",null,null,null,null,null,"CIV ","コートジボワール ","Côte d'Ivoire"]
[null,"GRD ","グレナダ ","Grenada",null,null,null,null,null,"CRI ","コスタリカ ","Costa Rica"]
[null,"HRV ","クロアチア ","Croatia",null,null,null,null,null,"COL ","コロンビア ","Colombia"]
[null,"CYM ","ケイマン諸島 ","Cayman Islands",null,null,null,null,null,"COG ","コンゴ共和国 ","Congo"]
[null,"KEN ","ケニア ","Kenya",null,null,null,null,null,"SAU ","サウジアラビア ","Saudi Arabia"]
[null,"CIV ","コートジボワール ","Côte d'Ivoire",null,null,null,null,null,"WSM ","サモア ","Samoa"]
[null,"CRI ","コスタリカ ","Costa Rica",null,null,null,null,null,"ZMB ","ザンビア ","Zambia"]
[null,"COL ","コロンビア ","Colombia",null,null,null,null,null,"SMR ","サンマリノ ","San Marino"]
[null,"COG ","コンゴ共和国 ","Congo",null,null,null,null,null,"SLE ","シエラレオネ ","Sierra Leone"]
[null,"SAU ","サウジアラビア ","Saudi Arabia",null,null,null,null,null,"DJI ","ジブチ ","Djibouti"]
[null,"WSM ","サモア ","Samoa",null,null,null,null,null,"GIB ","ジブラルタル ","Gibraltar"]
[null,"ZMB ","ザンビア ","Zambia",null,null,null,null,null,"JAM ","ジャマイカ ","Jamaica"]
[null,"SMR ","サンマリノ ","San Marino",null,null,null,null,null,"GEO ","ジョージア ","Georgia"]
[null,"SLE ","シエラレオネ ","Sierra Leone",null,null,null,null,null,"SGP ","シンガポール ","Singapore"]
[null,"DJI ","ジブチ ","Djibouti",null,null,null,null,null,"ZWE ","ジンバブエ ","Zimbabwe"]
[null,"GIB ","ジブラルタル ","Gibraltar",null,null,null,null,null,"CHE ","スイス ","Switzerland"]
[null,"JAM ","ジャマイカ ","Jamaica",null,null,null,null,null,"SWE ","スウェーデン ","Sweden"]
[null,"GEO ","ジョージア ","Georgia",null,null,null,null,null,"ESP ","スペイン ","Spain"]
[null,"SGP ","シンガポール ","Singapore",null,null,null,null,null,"SUR ","スリナム ","Suriname"]
[null,"ZWE ","ジンバブエ ","Zimbabwe",null,null,null,null,null,"LKA ","スリランカ ","Sri Lanka"]
[null,"CHE ","スイス ","Switzerland",null,null,null,null,null,"SVK ","スロバキア ","Slovakia"]
[null,"SWE ","スウェーデン ","Sweden",null,null,null,null,null,"SVN ","スロベニア ","Slovenia"]
[null,"ESP ","スペイン ","Spain",null,null,null,null,null,"SYC ","セーシェル ","Seychelles"]
[null,"SUR ","スリナム ","Suriname",null,null,null,null,null,"SEN ","セネガル ","Senegal"]
[null,"LKA ","スリランカ ","Sri Lanka",null,null,null,null,null,"SRB ","セルビア ","Serbia"]
[null,"SVK ","スロバキア ","Slovakia",null,null,null,null,null,"KNA ","セントクリストファー・ネイビス ","Saint Kitts and Nevis"]
[null,"SVN ","スロベニア ","Slovenia",null,null,null,null,null,"VCT ","セントビンセントおよびグレナディーン諸島 ","Saint Vincent "]
[null,"SYC ","セーシェル ","Seychelles",null,null,null,null,null,"LCA ","セントルシア ","Saint Lucia"]
[null,"SEN ","セネガル ","Senegal",null,null,null,null,null,"SLB ","ソロモン諸島 ","Solomon Islands"]
[null,"SRB ","セルビア ","Serbia",null,null,null,null,null,"TCA ","タークス・カイコス諸島 ","Turks and Caicos Islands"]
[null,"KNA ","セントクリストファー・ネイビス ","Saint Kitts and Nevis",null,null,null,null,null,"THA ","タイ ","Thailand"]
[null,"VCT ","セントビンセントおよびグレナディーン諸島 ","Saint Vincent ",null,null,null,null,null,"TJK ","タジキスタン ","Tajikistan"]
[null,"LCA ","セントルシア ","Saint Lucia",null,null,null,null,null,"TZA ","タンザニア ","Tanzania, United Republic of"]
[null,"SLB ","ソロモン諸島 ","Solomon Islands",null,null,null,null,null,"CZE ","チェコ ","Czechia"]
[null,"TCA ","タークス・カイコス諸島 ","Turks and Caicos Islands",null,null,null,null,null,"TCD ","チャド ","Chad"]
[null,"THA ","タイ ","Thailand",null,null,null,null,null,"TUN ","チュニジア ","Tunisia"]
[null,"TJK ","タジキスタン ","Tajikistan",null,null,null,null,null,"CHL ","チリ ","Chile"]
[null,"TZA ","タンザニア ","Tanzania, United Republic of",null,null,null,null,null,"TUV ","ツバル ","Tuvalu"]
[null,"CZE ","チェコ ","Czechia",null,null,null,null,null,"DNK ","デンマーク ","Denmark"]
[null,"TCD ","チャド ","Chad",null,null,null,null,null,"DEU ","ドイツ ","Germany"]
[null,"TUN ","チュニジア ","Tunisia",null,null,null,null,null,"TGO ","トーゴ ","Togo"]
[null,"CHL ","チリ ","Chile",null,null,null,null,null,"DOM ","ドミニカ共和国 ","Dominican Republic"]
[null,"TUV ","ツバル ","Tuvalu",null,null,null,null,null,"DMA ","ドミニカ国 ","Dominica"]
[null,"DNK ","デンマーク ","Denmark",null,null,null,null,null,"TTO ","トリニダード・トバゴ ","Trinidad and Tobago"]
[null,"DEU ","ドイツ ","Germany",null,null,null,null,null,"TKM ","トルクメニスタン ","Turkmenistan"]
[null,"TGO ","トーゴ ","Togo",null,null,null,null,null,"TUR ","トルコ ","Turkey"]
[null,"DOM ","ドミニカ共和国 ","Dominican Republic",null,null,null,null,null,"TON ","トンガ ","Tonga"]
[null,"DMA ","ドミニカ国 ","Dominica",null,null,null,null,null,"NGA ","ナイジェリア ","Nigeria"]
[null,"TTO ","トリニダード・トバゴ ","Trinidad and Tobago",null,null,null,null,null,"NAM ","ナミビア ","Namibia"]
[null,"TKM ","トルクメニスタン ","Turkmenistan",null,null,null,null,null,"NIC ","ニカラグア ","Nicaragua"]
[null,"TUR ","トルコ ","Turkey",null,null,null,null,null,"NER ","ニジェール ","Niger"]
[null,"TON ","トンガ ","Tonga",null,null,null,null,null,"NCL ","ニューカレドニア ","New Caledonia"]
[null,"NGA ","ナイジェリア ","Nigeria",null,null,null,null,null,"NZL ","ニュージーランド ","New Zealand"]
[null,"NAM ","ナミビア ","Namibia",null,null,null,null,null,"NPL ","ネパール ","Nepal"]
[null,"NIC ","ニカラグア ","Nicaragua",null,null,null,null,null,"NFK ","ノーフォーク島 ","Norfolk Island"]
[null,"NER ","ニジェール ","Niger",null,null,null,null,null,"NOR ","ノルウェー ","Norway"]
[null,"NCL ","ニューカレドニア ","New Caledonia",null,null,null,null,null,"BHR ","バーレーン ","Bahrain"]
[null,"NZL ","ニュージーランド ","New Zealand",null,null,null,null,null,"HTI ","ハイチ ","Haiti"]
[null,"NPL ","ネパール ","Nepal",null,null,null,null,null,"PAK ","パキスタン ","Pakistan"]
[null,"NFK ","ノーフォーク島 ","Norfolk Island",null,null,null,null,null,"PAN ","パナマ ","Panama"]
[null,"NOR ","ノルウェー ","Norway",null,null,null,null,null,"VUT ","バヌアツ ","Vanuatu"]
[null,"BHR ","バーレーン ","Bahrain",null,null,null,null,null,"BHS ","バハマ ","Bahamas"]
[null,"HTI ","ハイチ ","Haiti",null,null,null,null,null,"PNG ","パプアニューギニア ","Papua New Guinea"]
[null,"PAK ","パキスタン ","Pakistan",null,null,null,null,null,"BMU ","バミューダ ","Bermuda"]
[null,"PAN ","パナマ ","Panama",null,null,null,null,null,"PLW ","パラオ ","Palau"]
[null,"VUT ","バヌアツ ","Vanuatu",null,null,null,null,null,"PRY ","パラグアイ ","Paraguay"]
[null,"BHS ","バハマ ","Bahamas",null,null,null,null,null,"BRB ","バルバドス ","Barbados"]
[null,"PNG ","パプアニューギニア ","Papua New Guinea",null,null,null,null,null,"HUN ","ハンガリー ","Hungary"]
[null,"BMU ","バミューダ ","Bermuda",null,null,null,null,null,"BGD ","バングラデシュ ","Bangladesh"]
[null,"PLW ","パラオ ","Palau",null,null,null,null,null,"FJI ","フィジー ","Fiji"]
[null,"PRY ","パラグアイ ","Paraguay",null,null,null,null,null,"PHL ","フィリピン ","Philippines"]
[null,"BRB ","バルバドス ","Barbados",null,null,null,null,null,"FIN ","フィンランド ","Finland"]
[null,"HUN ","ハンガリー ","Hungary",null,null,null,null,null,"BTN ","ブータン ","Bhutan"]
[null,"BGD ","バングラデシュ ","Bangladesh",null,null,null,null,null,"PRI ","プエルトリコ ","Puerto Rico"]
[null,"FJI ","フィジー ","Fiji",null,null,null,null,null,"FRO ","フェロー諸島 ","Faroe Islands"]
[null,"PHL ","フィリピン ","Philippines",null,null,null,null,null,"BRA ","ブラジル ","Brazil"]
[null,"FIN ","フィンランド ","Finland",null,null,null,null,null,"FRA ","フランス ","France"]
[null,"BTN ","ブータン ","Bhutan",null,null,null,null,null,"GUF ","フランス領ギアナ ","French Guiana"]
[null,"PRI ","プエルトリコ ","Puerto Rico",null,null,null,null,null,"PYF ","フランス領ポリネシア ","French Polynesia"]
[null,"FRO ","フェロー諸島 ","Faroe Islands",null,null,null,null,null,"BGR ","ブルガリア ","Bulgaria"]
[null,"BRA ","ブラジル ","Brazil",null,null,null,null,null,"BFA ","ブルキナファソ ","Burkina Faso"]
[null,"FRA ","フランス ","France",null,null,null,null,null,"BRN ","ブルネイ・ダルサラーム ","Brunei Darussalam"]
[null,"GUF ","フランス領ギアナ ","French Guiana",null,null,null,null,null,"BDI ","ブルンジ ","Burundi"]
[null,"PYF ","フランス領ポリネシア ","French Polynesia",null,null,null,null,null,"VNM ","ベトナム ","Viet Nam"]
[null,"BGR ","ブルガリア ","Bulgaria",null,null,null,null,null,"BEN ","ベナン ","Benin"]
[null,"BFA ","ブルキナファソ ","Burkina Faso",null,null,null,null,null,"VEN ","ベネズエラ・ボリバル共和国 ","Venezuela, Bolivarian Republic of"]
[null,"BRN ","ブルネイ・ダルサラーム ","Brunei Darussalam",null,null,null,null,null,"BLR ","ベラルーシ ","Belarus"]
[null,"BDI ","ブルンジ ","Burundi",null,null,null,null,null,"BLZ ","ベリーズ ","Belize"]
[null,"VNM ","ベトナム ","Viet Nam",null,null,null,null,null,"PER ","ペルー ","Peru"]
[null,"BEN ","ベナン ","Benin",null,null,null,null,null,"BEL ","ベルギー ","Belgium"]
[null,"VEN ","ベネズエラ・ボリバル共和国 ","Venezuela, Bolivarian Republic of",null,null,null,null,null,"POL ","ポーランド ","Poland"]
[null,"BLR ","ベラルーシ ","Belarus",null,null,null,null,null,"BIH ","ボスニア・ヘルツェゴビナ ","Bosnia and Herzegovina"]
[null,"BLZ ","ベリーズ ","Belize",null,null,null,null,null,"BWA ","ボツワナ ","Botswana"]
[null,"PER ","ペルー ","Peru",null,null,null,null,null,"BOL ","ボリビア多民族国 ","Bolivia, Plurinational State of"]
[null,"BEL ","ベルギー ","Belgium",null,null,null,null,null,"PRT ","ポルトガル ","Portugal"]
[null,"POL ","ポーランド ","Poland",null,null,null,null,null,"HND ","ホンジュラス ","Honduras"]
[null,"BIH ","ボスニア・ヘルツェゴビナ ","Bosnia and Herzegovina",null,null,null,null,null,"MHL ","マーシャル諸島 ","Marshall Islands"]
[null,"BWA ","ボツワナ ","Botswana",null,null,null,null,null,"MAC ","マカオ ","Macau"]
[null,"BOL ","ボリビア多民族国 ","Bolivia, Plurinational State of",null,null,null,null,null,"MDG ","マダガスカル ","Madagascar"]
[null,"PRT ","ポルトガル ","Portugal",null,null,null,null,null,"MWI ","マラウイ ","Malawi"]
[null,"HND ","ホンジュラス ","Honduras",null,null,null,null,null,"MLI ","マリ ","Mali"]
[null,"MHL ","マーシャル諸島 ","Marshall Islands",null,null,null,null,null,"MLT ","マルタ ","Malta"]
[null,"MAC ","マカオ ","Macau",null,null,null,null,null,"MTQ ","マルティニーク ","Martinique"]
[null,"MDG ","マダガスカル ","Madagascar",null,null,null,null,null,"MYS ","マレーシア ","Malaysia"]
[null,"MWI ","マラウイ ","Malawi",null,null,null,null,null,"FSM ","ミクロネシア連邦 ","Micronesia, Federated States of"]
[null,"MLI ","マリ ","Mali",null,null,null,null,null,"MMR ","ミャンマー ","Myanmar"]
[null,"MLT ","マルタ ","Malta",null,null,null,null,null,"MEX ","メキシコ ","Mexico"]
[null,"MTQ ","マルティニーク ","Martinique",null,null,null,null,null,"MUS ","モーリシャス ","Mauritius"]
[null,"MYS ","マレーシア ","Malaysia",null,null,null,null,null,"MRT ","モーリタニア ","Mauritania"]
[null,"FSM ","ミクロネシア連邦 ","Micronesia, Federated States of",null,null,null,null,null,"MOZ ","モザンビーク ","Mozambique"]
[null,"MMR ","ミャンマー ","Myanmar",null,null,null,null,null,"MCO ","モナコ ","Monaco"]
[null,"MEX ","メキシコ ","Mexico",null,null,null,null,null,"MDV ","モルディブ ","Maldives"]
[null,"MUS ","モーリシャス ","Mauritius",null,null,null,null,null,"MDA ","モルドバ共和国 ","Moldova, Republic of"]
[null,"MRT ","モーリタニア ","Mauritania",null,null,null,null,null,"MAR ","モロッコ ","Morocco"]
[null,"MOZ ","モザンビーク ","Mozambique",null,null,null,null,null,"MNG ","モンゴル ","Mongolia"]
[null,"MCO ","モナコ ","Monaco",null,null,null,null,null,"MNE ","モンテネグロ ","Montenegro"]
[null,"MDV ","モルディブ ","Maldives",null,null,null,null,null,"MSR ","モントセラト ","Montserrat"]
[null,"MDA ","モルドバ共和国 ","Moldova, Republic of",null,null,null,null,null,"JOR ","ヨルダン ","Jordan"]
[null,"MAR ","モロッコ ","Morocco",null,null,null,null,null,"LAO ","ラオス人民民主共和国 ","Lao "]
[null,"MNG ","モンゴル ","Mongolia",null,null,null,null,null,"LVA ","ラトビア ","Latvia"]
[null,"MNE ","モンテネグロ ","Montenegro",null,null,null,null,null,"LTU ","リトアニア ","Lithuania"]
[null,"MSR ","モントセラト ","Montserrat",null,null,null,null,null,"LBY ","リビア ","Libya"]
[null,"JOR ","ヨルダン ","Jordan",null,null,null,null,null,"LIE ","リヒテンシュタイン ","Liechtenstein"]
[null,"LAO ","ラオス人民民主共和国 ","Lao ",null,null,null,null,null,"LBR ","リベリア ","Liberia"]
[null,"LVA ","ラトビア ","Latvia",null,null,null,null,null,"ROU ","ルーマニア ","Romania"]
[null,"LTU ","リトアニア ","Lithuania",null,null,null,null,null,"LUX ","ルクセンブルク ","Luxembourg"]
[null,"LBY ","リビア ","Libya",null,null,null,null,null,"RWA ","ルワンダ ","Rwanda"]
[null,"LIE ","リヒテンシュタイン ","Liechtenstein",null,null,null,null,null,"LSO ","レソト ","Lesotho"]
[null,"LBR ","リベリア ","Liberia",null,null,null,null,null,"LBN ","レバノン ","Lebanon"]
[null,"ROU ","ルーマニア ","Romania",null,null,null,null,null,"REU ","レユニオン ","Réunion"]
[null,"LUX ","ルクセンブルク ","Luxembourg",null,null,null,null,null,"RUS ","ロシア連邦 ","Russian Federation"]
[null,"RWA ","ルワンダ ","Rwanda",null,null,null,null,null,"CAF ","中央アフリカ共和国 ","Central African Republic"]
[null,"LSO ","レソト ","Lesotho",null,null,null,null,null,"TLS ","東ティモール ","Timor-Leste"]
[null,"LBN ","レバノン ","Lebanon",null,null,null,null,null,"ZAF ","南アフリカ ","South Africa"]
[null,"REU ","レユニオン ","Réunion",null,null,null,null,null,"MKD ","北マケドニア ","North Macedonia"]
[null,"RUS ","ロシア連邦 ","Russian Federation",null,null,null,null,null,"MNP ","北マリアナ諸島 ","Northern Mariana Islands"]
[null,"CAF ","中央アフリカ共和国 ","Central African Republic",null,null,null,null,null,null,"その他"]
[null,"TLS ","東ティモール ","Timor-Leste"]
[null,"ZAF ","南アフリカ ","South Africa",null,null,null,null,null,"JPN ","日本 ","Japan"]
[null,"MKD ","北マケドニア ","North Macedonia",null,null,null,null,null,"MKD ","北マケドニア ","North Macedonia"]
[null,"MNP ","北マリアナ諸島 ","Northern Mariana Islands",null,null,null,null,null,"MNP ","北マリアナ諸島 ","Northern Mariana Islands"]
[null,null,"その他",null,null,null,null,null,null,null,"その他"]

{"sheet":"入力シート","index":3,"n_rows":153,"n_cols":46,"rows_kept":153,"cut":false,"hidden":false,"merged":[[68,2,68,14],[71,2,72,28],[71,29,72,33],[69,2,69,23],[69,24,69,33],[70,2,70,14],[70,15,70,33],[57,15,59,33],[57,2,59,14],[68,15,68,33],[63,2,63,14],[63,15,63,33],[66,2,66,14],[66,15,66,33],[67,15,67,33],[64,15,64,33],[65,15,65,33],[64,2,65,9],[64,10,64,14],[65,10,65,14],[7,15,7,33],[21,2,21,14],[22,2,22,14],[21,15,21,33],[10,2,10,14],[10,15,10,25],[37,2,38,14],[53,15,56,33],[67,2,67,14],[53,2,56,14],[3,45,16,69],[35,2,36,14],[35,15,36,33],[6,36,7,40],[5,2,5,33],[10,26,10,33],[34,15,34,25],[9,2,9,40],[6,2,6,14],[6,15,6,25],[6,26,6,33],[16,2,17,14],[16,15,17,33],[27,2,29,14],[27,15,29,33],[30,2,33,14],[12,2,12,14],[12,15,12,33],[11,15,11,33],[11,2,11,14],[34,26,34,33],[34,2,34,14],[22,15,22,33],[7,2,7,14],[100,2,101,14],[100,15,101,34],[95,15,96,33],[77,2,78,14],[79,2,80,14],[77,15,78,33],[79,15,80,33],[83,2,84,14],[83,15,84,23],[83,24,84,33],[85,2,86,9],[85,10,86,33],[89,2,89,42],[91,2,92,14],[93,2,94,14],[95,2,96,14],[91,15,92,33],[93,15,94,33],[87,10,87,33],[87,2,87,9],[81,15,82,33],[81,2,82,14],[105,46,105,47],[103,2,103,3],[103,4,103,5],[103,6,103,7],[103,8,103,9],[103,10,103,11],[103,12,103,13],[103,14,103,15],[104,2,104,3],[104,4,104,5],[104,6,104,7],[104,8,104,9],[104,10,104,11],[104,12,104,13],[104,14,104,15],[103,16,103,25],[104,16,104,25],[103,26,103,34],[104,26,104,34],[105,2,105,34],[50,47,50,59],[52,47,52,57],[47,15,50,33],[47,2,50,14],[51,2,52,14],[51,15,52,25],[51,26,52,33],[20,40,20,58],[22,40,22,58],[18,15,20,33],[18,2,20,14],[23,2,23,14],[23,15,23,33],[25,1,25,41],[30,15,33,33],[37,15,38,33],[42,2,43,14],[42,15,43,33]]}
[]
[null,"◇　白枠内を入力してください。全て半角・英字大文字で入力してください。"]
[]
[null,null,null,null,null,null,null,null,null,null,null,null,null,null,null,null,null,null,null,null,null,null,null,null,null,null,null,null,null,null,null,null,null,null,null,null,null,null,null,null,null,null,null,null,null,"◎入力前に「ご利用にあたって」シートの記載内容をご確認ください。\n◎各入力項目選択時に表示されるガイドをご参照のうえ、項目を入力してください。\n◎シート背景が灰色になっている項目は入力不可項目です。\n◎すべて入力できましたら、送金依頼書(右隣印刷シート)を印刷して\nお取引店舗へご来店ください\n\n◎外国送金取引規定\nhttps://www.chushin.co.jp/regulation/"]
[null,"１．送金通貨と金額をご入力ください。"]
[]
[null,null,"①通貨(CURRENCY)",null,null,null,null,null,null,null,null,null,null,null,null,null,null,null,null,null,null,null,null,null,null,null,{"$f":"IFERROR(リスト!C20,\"\")","v":""}]
[null,null,"②金額(REMIT AMOUNT)"]
[]
[null,null,"※送金される通貨が外貨建で日本円相当額でのお取扱を希望される場合はこちらを入力ください。"]
[null,null,"③通貨(CURRENCY)",null,null,null,null,null,null,null,null,null,null,null,null,null,null,null,null,null,null,null,null,null,null,null,{"$f":"IFERROR(リスト!C21,\"\")","v":""}]
[null,null,"④金額(AMOUNT)"]
[null,null,"⑤手数料区分"]
[]
[null,"2.ご送金人(ご依頼人)情報をご入力ください"]
[]
[null,null,"⑥名前(NAME)"]
[]
[null,null,"⑦住所(ADDRESS)"]
[]
[]
[null,null,"⑧送金方法\n（PAYMENT TYPE）"]
[null,null,"⑨支払方法\n（PAYMENT INSTRUCTION）",null,null,null,null,null,null,null,null,null,null,null,null,"通知払"]
[null,null,"⑩支払銀行手数料\n（PAYING BANK CHARGE）"]
[]
[null,"３.お受取人取引(送金先)銀行をご入力ください"]
[]
[null,null,"⑪銀行名・支店名\n(PAYING BANK・BRANCH)"]
[]
[]
[null,null,"⑫住所(ADDRESS)"]
[]
[]
[]
[null,null,"⑬国名(COUNTRY)",null,null,null,null,null,null,null,null,null,null,null,null,null,null,null,null,null,null,null,null,null,null,null,{"$f":"IFERROR(リスト!C23,\"\")","v":""}]
[null,null,"⑭銀行コード情報\n(SWIFT，ABA，BIC 等)"]
[]
[null,null,"⑮経由銀行\n(INTERMEDIARY BANK)"]
[]
[]
[null,"4.お受取人口座番号(A/C NO.)をご記入ください"]
[]
[null,null,"⑯口座番号(A/C NO.)\n※欧州等向けはIBANコード"]
[]
[]
[null,"5.お受取人(送金先)情報をご入力ください"]
[]
[null,null,"⑰受取人名(NAME)"]
[]
[]
[]
[null,null,"⑱受取人国(COUNTRY)",null,null,null,null,null,null,null,null,null,null,null,null,null,null,null,null,null,null,null,null,null,null,null,{"$f":"IFERROR(リスト!C24,\"\")","v":""}]
[null,null,null,null,null,null,null,null,null,null,null,null,null,null,null,null,null,null,null,null,null,null,null,null,null,null,{"$f":"IFERROR(リスト!C41,\"\")","v":"アメリカ合衆国 "}]
[null,null,"⑲受取人住所(ADDRESS)"]
[]
[]
[]
[null,null,"⑳お受取人への連絡事項\n(Information to the recipient)"]
[]
[]
[]
[null,"６．ご送金目的をご入力ください"]
[]
[null,null,"㉑送金目的(PURPOSE)"]
[null,null,"㉒送金理由\n(PURPOSE DETAIL)",null,null,null,null,null,null,null,"英語"]
[null,null,null,null,null,null,null,null,null,null,"日本語"]
[null,null,"㉓原産地\n(COUNTRY OF ORIGIN)"]
[null,null,"㉔船積を行った都市名\n(SHIPMENT CITY NAME)"]
[null,null,"㉕仕向地\n(Place of destination)"]
[null,null,"㉖外国為替及び外国貿易法に基づく許可等\n(必要な場合チェック)",null,null,null,null,null,null,null,null,null,null,null,null,null,null,null,null,null,null,null,null,null,null,null,null,null,null,null,null,null,null,null,null,null,null,null,null,null,null,false]
[null,null,"㉗送金許可番号・日付\n(PERMIT NO. and DATE)"]
[null,null,"㉘「外国為替及び外国貿易法」の北朝鮮・イラン・ウクライナ情勢関連規制等及び「米国OFAC規制等の各国経済制裁関連法令・規制に該当しないことを表明します。"]
[null,null,null,null,null,null,null,null,null,null,null,null,null,null,null,null,null,null,null,null,null,null,null,null,null,null,null,null,null,null,null,null,null,null,null,null,null,null,null,null,null,false]
[null,null,null,null,null,null,null,null,null,null,null,null,null,null,null,null,null,null,null,null,null,null,null,null,null,null,null,null,null,null,null,null,null,null,null,null,null,null,null,null,null,false]
[null,"７．(１)送金資金のお支払い口座をご入力ください"]
[]
[]
[null,null,"㉙店番(3桁)\n(BRANCH No.)"]
[]
[null,null,"㉚口座番号(7桁)\n(A/C No.)"]
[]
[null,null,"㉛科目\n(TYPE OF　DEPOSIT)"]
[]
[null,null,"㉜引落口座通貨\n(A/C． CURRENCY)",null,null,null,null,null,null,null,null,null,null,null,null,null,null,null,null,null,null,null,null,null,{"$f":"IFERROR(リスト!C22,\"\")","v":""}]
[]
[null,null,"㉝代金決済方法\n(PAYMENT　INSTRCTION)"]
[]
[null,null,"㉞予約番号\n(EXCHANGE CONTRACT NO.)\n"]
[]
[null,null," (２)手数料のお支払い口座をご入力ください"]
[]
[null,null,"㉟店番(3桁)\n(BRANCH No.)"]
[]
[null,null,"㊱口座番号(7桁)\n(A/C No.)"]
[]
[null,null,"㊲科目\n(TYPE OF　DEPOSIT)"]
[]
[]
[null,"８．金融機関への連絡事項"]
[]
[null,null,"㊳金融機関への連絡事項\n(MESSAGE TO BANK)"]
[]
[]
[null,null,1,null,2,null,3,null,4,null,5,null,6,null,7,null,"外為法許可",null,null,null,null,null,null,null,null,null,"外為法規制確認"]
[null,null,{"$f":"N116","v":"×"},null,{"$f":"IF($K$121=4,\"〇\",\"×\")","v":"×"},null,{"$f":"IF($K$125=4,\"〇\",\"×\")","v":"×"},null,{"$f":"IF(P43=\"\",\"×\",\"〇\")","v":"×"},null,{"$f":"IF($K$132=3,\"〇\",\"×\")","v":"×"},null,{"$f":"IF(AND($P$64=リスト!E28,$K$138=6),\"〇\",IF(AND($P$64=リスト!E29,$K$138=6),\"○\",IF(AND($P$64=リスト!E30,$K$138=3,$K$139=0),\"○\",\"×\")))","v":"×"},null,{"$f":"IF(AND($I$145=6,$P$84=リスト!$C$4,$K$86=リスト!$G$28),\"〇\",IF(AND($J$145=5,$P$84=リスト!$C$4,$K$86=リスト!G25,$L$145=0),\"〇\",IF(AND($J$145=5,$P$84=リスト!$C$4,$K$86=リスト!G26,$L$145=0),\"〇\",IF(AND($K$145=8,$K$86=リスト!G27,$M$145=0),\"〇\",\"×\"))))","v":"×"},null,{"$f":"IF($AP$70=FALSE,\"〇\",IF($P$71=\"\",\"㉗送金許可番号・日付をご入力ください\",\"○\"))","v":"〇"},null,null,null,null,null,null,null,null,null,{"$f":"IF(AP74=TRUE,\"○\",\"㉘をご確認のうえ、チェックしてください\")","v":"㉘をご確認のうえ、チェックしてください"}]
[null,null,"↑各入力項目の入力漏れ・重複をチェックしています。１～7および外為法関連のチェックが全て〇となっていることをご確認ください。"]
[]
[]
[]
[]
[]
[]
[]
[]
[]
[1,{"$f":"IF($P$7<>\"\",\"〇\",\"×\")","v":"×"},null,null,null,null,null,null,null,"2024-01-01",{"$f":"COUNTIF($B$116:$B$117,\"〇\")","v":0},null,null,{"$f":"IF(AND($K$116=2,$K$118=0),\"〇\",IF($K$116=1,\"×\",IF($K$118=3,\"〇\",\"×\")))","v":"×"}]
[2,{"$f":"IF($P$8<>\"\",\"〇\",\"×\")","v":"×"}]
[3,{"$f":"IF($P$11<>\"\",\"〇\",\"×\")","v":"×"},null,null,null,null,null,null,null,null,{"$f":"COUNTIF($B$118:$B$120,\"〇\")","v":0}]
[4,{"$f":"IF($P$12<>\"\",\"〇\",\"×\")","v":"×"}]
[5,{"$f":"IF(P$13>\"\",\"〇\",\"×\")","v":"×"}]
[6,{"$f":"IF($P$17<>\"\",\"〇\",\"×\")","v":"×"},null,null,null,null,null,null,null,2,{"$f":"COUNTIF($B$121:$B$125,\"〇\")","v":0}]
[7,{"$f":"IF($P$19<>\"\",\"〇\",\"×\")","v":"×"}]
[8,{"$f":"IF(P22<>\"\",\"〇\",\"×\")","v":"×"}]
[9,{"$f":"IF(P23=4,\"〇\",\"×\")","v":"×"}]
[10,{"$f":"IF(P24<>\"\",\"〇\",\"×\")","v":"×"},null,null,null,null,null,null,null,3,{"$f":"COUNTIF($B$126:$B$129,\"〇\")","v":0}]
[11,{"$f":"IF(P28<>\"\",\"〇\",\"×\")","v":"×"}]
[12,{"$f":"IF($P$31<>\"\",\"〇\",\"×\")","v":"×"}]
[13,{"$f":"IF($P$35<>\"\",\"〇\",\"×\")","v":"×"}]
[14,{"$f":"IF($P$36<>\"\",\"〇\",\"×\")","v":"×"}]
[15]
[16,null,null,null,null,null,null,null,null,4]
[17,{"$f":"IF($P$48<>\"\",\"〇\",\"×\")","v":"×"},null,null,null,null,null,null,null,5,{"$f":"COUNTIF($B$132:$B$134,\"〇\")","v":0}]
[18,{"$f":"IF(P52<>\"\",\"〇\",\"×\")","v":"×"}]
[19,{"$f":"IF($P$54<>\"\",\"〇\",\"×\")","v":"×"}]
[19]
[20,{"$f":"IF($P$64<>\"\",\"〇\",\"×\")","v":"×"}]
[21,{"$f":"IF($P$64<>\"\",\"〇\",\"×\")","v":"×"},null,null,null,null,null,null,null,"外",{"$f":"COUNTIF($B$136:$B$138,\"〇\")","v":0}]
["22-①",{"$f":"IF($P$65<>\"\",\"〇\",\"×\")","v":"×"},null,null,null,null,null,null,null,null,{"$f":"COUNTIF($B$137:$B$142,\"〇\")","v":0}]
["22-②",{"$f":"IF($P$66<>\"\",\"〇\",\"×\")","v":"×"},null,null,null,null,null,null,null,null,{"$f":"COUNTIF($B$140:$B$142,\"〇\")","v":0}]
[23,{"$f":"IF($P$67<>\"\",\"〇\",\"×\")","v":"×"}]
[24,{"$f":"IF($P$68<>\"\",\"〇\",\"×\")","v":"×"}]
[25,{"$f":"IF($P$69<>\"\",\"〇\",\"×\")","v":"×"}]
[26,{"$f":"IF($P$71<>\"\",\"〇\",\"×\")","v":"×"},null,null,null,{"$f":"B143","v":"×"},"○"]
[27,{"$f":"IF($AD$71<>\"\",\"〇\",\"×\")","v":"×"}]
[28,{"$f":"IF($P$78<>\"\",\"〇\",\"×\")","v":"×"},null,null,null,null,null,null,{"$f":"COUNTIF(A145:B150,\"〇\")","v":0},{"$f":"COUNTIF(A145:B149,\"〇\")","v":0},{"$f":"COUNTIF(B145:B153,\"〇\")","v":0},{"$f":"COUNTIF(B150:B150,\"〇\")","v":0},{"$f":"COUNTIF(C150:C153,\"〇\")","v":0},null,null,"予約以外"]
[29,{"$f":"IF($P$80<>\"\",\"〇\",\"×\")","v":"×"},null,null,null,null,null,null,null,null,null,null,null,null,null,"予約"]
[30,{"$f":"IF($P$82<>\"\",\"〇\",\"×\")","v":"×"}]
[31,{"$f":"IF($P$84<>\"\",\"〇\",\"×\")","v":"×"}]
[32,{"$f":"IF($K$86<>\"\",\"〇\",\"×\")","v":"×"}]
[33,{"$f":"IF($K$88<>\"\",\"〇\",\"×\")","v":"×"}]
[34,{"$f":"IF($P$92<>\"\",\"〇\",\"×\")","v":"×"}]
[35,{"$f":"IF($P$94<>\"\",\"〇\",\"×\")","v":"×"}]
[36,{"$f":"IF($P$96<>\"\",\"〇\",\"×\")","v":"×"}]

{"sheet":"印刷シート","index":4,"n_rows":60,"n_cols":99,"rows_kept":60,"cut":false,"hidden":false,"merged":[[38,0,38,29],[38,30,38,32],[38,33,38,43],[38,44,38,65],[41,0,41,20],[41,21,41,44],[41,45,41,66],[47,0,48,66],[40,45,40,66],[39,0,39,54],[49,0,50,66],[45,0,46,3],[45,4,46,66],[40,0,40,20],[40,21,40,44],[42,0,42,66],[43,0,43,66],[24,76,24,86],[16,67,16,99],[11,74,11,93],[20,95,20,98],[11,67,11,73],[17,77,17,97],[20,67,20,71],[14,67,14,99],[20,75,20,86],[12,67,12,73],[11,94,11,99],[4,0,5,66],[29,0,31,54],[28,55,28,66],[29,55,31,66],[14,55,16,66],[19,0,19,66],[14,0,16,54],[18,0,18,66],[22,0,23,66],[13,55,13,66],[20,0,20,66],[11,10,12,66],[32,0,32,54],[26,0,27,66],[33,0,34,66],[37,32,37,66],[37,0,37,31],[36,0,36,12],[36,32,36,44],[35,13,35,25],[7,67,7,99],[6,0,6,45],[24,0,24,54],[25,0,25,54],[21,0,21,54],[10,0,10,54],[10,67,10,99],[13,67,13,99],[12,74,12,83],[12,84,12,99],[8,67,9,73],[8,74,9,99],[17,0,17,54],[7,0,9,66],[17,67,17,74],[24,67,24,71],[4,67,4,99],[5,67,5,79],[6,67,6,79],[5,80,5,99],[6,80,6,99],[0,23,0,73],[0,0,0,22],[2,0,2,54],[3,0,3,54],[2,67,2,99],[3,67,3,99]]}
["京都中央信用金庫 御中",null,null,null,null,null,null,null,null,null,null,null,null,null,null,null,null,null,null,null,null,null,null,"外国送金依頼書 兼 告知書"]
[]
["ご依頼人様情報",null,null,null,null,null,null,null,null,null,null,null,null,null,null,null,null,null,null,null,null,null,null,null,null,null,null,null,null,null,null,null,null,null,null,null,null,null,null,null,null,null,null,null,null,null,null,null,null,null,null,null,null,null,null,null,null,null,null,null,null,null,null,null,null,null,null,"ご依頼日/ご来店日"]
["ご依頼人様英文名\n"]
[{"$f":"UPPER(入力シート!P17)","v":""},null,null,null,null,null,null,null,null,null,null,null,null,null,null,null,null,null,null,null,null,null,null,null,null,null,null,null,null,null,null,null,null,null,null,null,null,null,null,null,null,null,null,null,null,null,null,null,null,null,null,null,null,null,null,null,null,null,null,null,null,null,null,null,null,null,null,"送金情報"]
[null,null,null,null,null,null,null,null,null,null,null,null,null,null,null,null,null,null,null,null,null,null,null,null,null,null,null,null,null,null,null,null,null,null,null,null,null,null,null,null,null,null,null,null,null,null,null,null,null,null,null,null,null,null,null,null,null,null,null,null,null,null,null,null,null,null,null,"送金種類",null,null,null,null,null,null,null,null,null,null,null,null,{"$f":"入力シート!$P$22","v":0}]
["ご依頼人様英文住所",null,null,null,null,null,null,null,null,null,null,null,null,null,null,null,null,null,null,null,null,null,null,null,null,null,null,null,null,null,null,null,null,null,null,null,null,null,null,null,null,null,null,null,null,null,null,null,null,null,null,null,null,null,null,null,null,null,null,null,null,null,null,null,null,null,null,"受取人支払方法",null,null,null,null,null,null,null,null,null,null,null,null,"通知払"]
[{"$f":"UPPER(入力シート!P19)","v":""},null,null,null,null,null,null,null,null,null,null,null,null,null,null,null,null,null,null,null,null,null,null,null,null,null,null,null,null,null,null,null,null,null,null,null,null,null,null,null,null,null,null,null,null,null,null,null,null,null,null,null,null,null,null,null,null,null,null,null,null,null,null,null,null,null,null,"送金金額・通貨"]
[null,null,null,null,null,null,null,null,null,null,null,null,null,null,null,null,null,null,null,null,null,null,null,null,null,null,null,null,null,null,null,null,null,null,null,null,null,null,null,null,null,null,null,null,null,null,null,null,null,null,null,null,null,null,null,null,null,null,null,null,null,null,null,null,null,null,null,{"$f":"入力シート!AA7","v":""},null,null,null,null,null,null,{"$f":"入力シート!P8","v":0}]
[]
["お受取人様銀行情報",null,null,null,null,null,null,null,null,null,null,null,null,null,null,null,null,null,null,null,null,null,null,null,null,null,null,null,null,null,null,null,null,null,null,null,null,null,null,null,null,null,null,null,null,null,null,null,null,null,null,null,null,null,null,null,null,null,null,null,null,null,null,null,null,null,null,"円貨相当額を送金してください。"]
["銀行名・支店名",null,null,null,null,null,null,null,null,null,{"$f":"UPPER(入力シート!P28)","v":""},null,null,null,null,null,null,null,null,null,null,null,null,null,null,null,null,null,null,null,null,null,null,null,null,null,null,null,null,null,null,null,null,null,null,null,null,null,null,null,null,null,null,null,null,null,null,null,null,null,null,null,null,null,null,null,null,"通貨",null,null,null,null,null,null,{"$f":"入力シート!P12","v":0},null,null,null,null,null,null,null,null,null,null,null,null,null,null,null,null,null,null,null,"円相当"]
[null,null,null,null,null,null,null,null,null,null,null,null,null,null,null,null,null,null,null,null,null,null,null,null,null,null,null,null,null,null,null,null,null,null,null,null,null,null,null,null,null,null,null,null,null,null,null,null,null,null,null,null,null,null,null,null,null,null,null,null,null,null,null,null,null,null,null,{"$f":"入力シート!AA11","v":""},null,null,null,null,null,null,"手数料区分",null,null,null,null,null,null,null,null,null,{"$f":"入力シート!P13","v":0}]
["住所",null,null,null,null,null,null,null,null,null,null,null,null,null,null,null,null,null,null,null,null,null,null,null,null,null,null,null,null,null,null,null,null,null,null,null,null,null,null,null,null,null,null,null,null,null,null,null,null,null,null,null,null,null,null,"国名",null,null,null,null,null,null,null,null,null,null,null,"支払銀行手数料"]
[{"$f":"UPPER(入力シート!P31)","v":""},null,null,null,null,null,null,null,null,null,null,null,null,null,null,null,null,null,null,null,null,null,null,null,null,null,null,null,null,null,null,null,null,null,null,null,null,null,null,null,null,null,null,null,null,null,null,null,null,null,null,null,null,null,null,{"$f":"UPPER(入力シート!AA35)","v":""},null,null,null,null,null,null,null,null,null,null,null,{"$f":"IFERROR(入力シート!P24,\"\")","v":0}]
[null,null,null,null,null,null,null,null,null,null,null,null,null,null,null,null,null,null,null,null,null,null,null,null,null,null,null,null,null,null,null,null,null,null,null,null,null,null,null,null,null,null,null,null,null,null,null,null,null,null,null,null,null,null,null,null,null,null,null,null,null,null,null,null,null,null,null,"代金決済方法"]
[null,null,null,null,null,null,null,null,null,null,null,null,null,null,null,null,null,null,null,null,null,null,null,null,null,null,null,null,null,null,null,null,null,null,null,null,null,null,null,null,null,null,null,null,null,null,null,null,null,null,null,null,null,null,null,null,null,null,null,null,null,null,null,null,null,null,null,{"$f":"IFERROR(入力シート!K86,\"\")","v":0}]
["銀行コード情報(SWIFT、ABA,BIC等)",null,null,null,null,null,null,null,null,null,null,null,null,null,null,null,null,null,null,null,null,null,null,null,null,null,null,null,null,null,null,null,null,null,null,null,null,null,null,null,null,null,null,null,null,null,null,null,null,null,null,null,null,null,null,null,null,null,null,null,null,null,null,null,null,null,null,"予約番号",null,null,null,null,null,null,null,"(",null,{"$f":"入力シート!K88","v":0},null,null,null,null,null,null,null,null,null,null,null,null,null,null,null,null,null,null,null,null,")"]
[{"$f":"UPPER(入力シート!P36)","v":""},null,null,null,null,null,null,null,null,null,null,null,null,null,null,null,null,null,null,null,null,null,null,null,null,null,null,null,null,null,null,null,null,null,null,null,null,null,null,null,null,null,null,null,null,null,null,null,null,null,null,null,null,null,null,null,null,null,null,null,null,null,null,null,null,null,null,"送金資金お引落し口座"]
["経由銀行",null,null,null,null,null,null,null,null,null,null,null,null,null,null,null,null,null,null,null,null,null,null,null,null,null,null,null,null,null,null,null,null,null,null,null,null,null,null,null,null,null,null,null,null,null,null,null,null,null,null,null,null,null,null,null,null,null,null,null,null,null,null,null,null,null,null,"店番　",null,null,null,null,null,null,"口座番号",null,null,null,null,null,null,null,null,null,null,null,null,"　　　　口座通貨"]
[{"$f":"UPPER(入力シート!P38)","v":""},null,null,null,null,null,null,null,null,null,null,null,null,null,null,null,null,null,null,null,null,null,null,null,null,null,null,null,null,null,null,null,null,null,null,null,null,null,null,null,null,null,null,null,null,null,null,null,null,null,null,null,null,null,null,null,null,null,null,null,null,null,null,null,null,null,null,{"$f":"入力シート!P78","v":0},null,null,null,null,null,null,null,{"$f":"入力シート!P80","v":0},null,null,null,null,null,null,null,null,null,null,null,null,{"$f":"入力シート!P82","v":0},null,null,null,null,null,null,{"$f":"入力シート!Y84","v":""}]
["お受取人様口座番号(A/C NO.)　※欧州向けの場合はIBAN",null,null,null,null,null,null,null,null,null,null,null,null,null,null,null,null,null,null,null,null,null,null,null,null,null,null,null,null,null,null,null,null,null,null,null,null,null,null,null,null,null,null,null,null,null,null,null,null,null,null,null,null,null,null,null,null,null,null,null,null,null,null,null,null,null,null,"手数料お引落し口座　"]
[{"$f":"UPPER(入力シート!P43)","v":""},null,null,null,null,null,null,null,null,null,null,null,null,null,null,null,null,null,null,null,null,null,null,null,null,null,null,null,null,null,null,null,null,null,null,null,null,null,null,null,null,null,null,null,null,null,null,null,null,null,null,null,null,null,null,null,null,null,null,null,null,null,null,null,null,null,null,"※送金資金お引落し口座と同一の際は入力不要です"]
[null,null,null,null,null,null,null,null,null,null,null,null,null,null,null,null,null,null,null,null,null,null,null,null,null,null,null,null,null,null,null,null,null,null,null,null,null,null,null,null,null,null,null,null,null,null,null,null,null,null,null,null,null,null,null,null,null,null,null,null,null,null,null,null,null,null,null,"店番",null,null,null,null,null,null,null,"口座番号"]
["お受取人様情報",null,null,null,null,null,null,null,null,null,null,null,null,null,null,null,null,null,null,null,null,null,null,null,null,null,null,null,null,null,null,null,null,null,null,null,null,null,null,null,null,null,null,null,null,null,null,null,null,null,null,null,null,null,null,null,null,null,null,null,null,null,null,null,null,null,null,{"$f":"入力シート!P92","v":0},null,null,null,null,null,null,null,null,{"$f":"入力シート!P94","v":0},null,null,null,null,null,null,null,null,null,null,null,{"$f":"入力シート!P96","v":0}]
["お受取人名"]
[{"$f":"UPPER(入力シート!P48)","v":""}]
[]
["お受取人住所",null,null,null,null,null,null,null,null,null,null,null,null,null,null,null,null,null,null,null,null,null,null,null,null,null,null,null,null,null,null,null,null,null,null,null,null,null,null,null,null,null,null,null,null,null,null,null,null,null,null,null,null,null,null,"国名"]
[{"$f":"UPPER(入力シート!P54)","v":""},null,null,null,null,null,null,null,null,null,null,null,null,null,null,null,null,null,null,null,null,null,null,null,null,null,null,null,null,null,null,null,null,null,null,null,null,null,null,null,null,null,null,null,null,null,null,null,null,null,null,null,null,null,null,{"$f":"UPPER(入力シート!AA52)","v":""}]
[]
[]
["お受取人への連絡事項"]
[{"$f":"UPPER(入力シート!P58)","v":""}]
[]
["ご送金目的　",null,null,null,null,null,null,null,null,null,null,null,null,{"$f":"入力シート!P64","v":0}]
["英語",null,null,null,null,null,null,null,null,null,null,null,null,null,null,null,null,null,null,null,null,null,null,null,null,null,null,null,null,null,null,null,"日本語"]
[{"$f":"UPPER(入力シート!P65)","v":""},null,null,null,null,null,null,null,null,null,null,null,null,null,null,null,null,null,null,null,null,null,null,null,null,null,null,null,null,null,null,null,{"$f":"UPPER(入力シート!P66)","v":""}]
["外国為替及び外国貿易法による許可等　要",null,null,null,null,null,null,null,null,null,null,null,null,null,null,null,null,null,null,null,null,null,null,null,null,null,null,null,null,null,null,null,null,"許可番号・日付",null,null,null,null,null,null,null,null,null,null,{"$f":"入力シート!P71","v":0}]
["送金目的が輸入もしくは仲介貿易取引の場合、以下もご記入ください。"]
["原産地(国名)",null,null,null,null,null,null,null,null,null,null,null,null,null,null,null,null,null,null,null,null,"船積地(都市名)",null,null,null,null,null,null,null,null,null,null,null,null,null,null,null,null,null,null,null,null,null,null,null,"仕向地(都市名)"]
[{"$f":"UPPER(入力シート!P67)","v":""},null,null,null,null,null,null,null,null,null,null,null,null,null,null,null,null,null,null,null,null,{"$f":"UPPER(入力シート!P68)","v":""},null,null,null,null,null,null,null,null,null,null,null,null,null,null,null,null,null,null,null,null,null,null,null,{"$f":"UPPER(入力シート!P69)","v":""}]
["金融機関への連絡事項"]
[{"$f":"UPPER(入力シート!P101)","v":""}]
[]
[null,null,null,null,"「外国為替及び外国貿易法」の北朝鮮・イラン・ウクライナ情勢関連規制等及び「米国OFAC規制」等の各国経済制裁関連法令・規制に該当しないことを表明します。"]
[]
["規制の内容は京都中央信用金庫ホームページの「外国送金等外国為替取引をご利用のお客様へ」に掲載しています。　\n掲載場所：https://www.chushin.co.jp/business/overseas/customers/"]
[]
["貴金庫における当方名義の上記口座から、送金資金および諸手数料を貴金庫所定の日に引落してください。この取扱いにあたり、当座勘定規定、またはその他の預金規定にかかわらず、当座小切手または払戻請求書は提出しません。"]
[]
[]
[]
[]
[]
[]
[]
[]
[]
[null,null,null,null,null,null,null,null,null,null,null,null,null,null,null,null,null,null,null,null,null,null,null,null,null,null,null,null,null,null,null,null,null,null,null,null,null,null,null,null,null,null,null,null,null,null,null,null,null,null,null,null,null,null,null,null,null,null,null,null,null,null,null,null,null,null,null,null,"公開：2024年5月"]

{"sheet":"入力シート 見本","index":5,"n_rows":151,"n_cols":37,"rows_kept":151,"cut":false,"hidden":false,"merged":[[5,2,5,33],[6,2,6,14],[6,15,6,25],[6,26,6,33],[7,2,7,14],[7,15,7,33],[9,2,9,40],[10,2,10,14],[22,36,25,66],[16,2,17,14],[16,15,17,33],[18,2,19,14],[18,15,19,33],[20,2,20,14],[20,15,20,33],[10,15,10,25],[10,26,10,33],[11,2,11,14],[11,15,11,33],[12,2,12,14],[12,15,12,33],[16,36,17,66],[19,36,19,66],[20,36,20,66],[28,2,30,14],[28,15,30,33],[31,2,31,14],[31,15,31,25],[31,26,31,33],[32,2,33,14],[32,15,33,33],[21,2,21,14],[21,15,21,33],[22,2,22,14],[22,15,22,33],[26,2,27,14],[26,15,27,33],[24,1,24,33],[47,2,47,14],[47,15,47,25],[47,26,47,33],[48,2,50,14],[48,15,50,33],[51,2,52,14],[51,15,52,33],[34,2,35,14],[34,15,35,33],[39,2,40,14],[39,15,40,33],[44,2,46,14],[44,15,46,33],[60,2,60,14],[60,15,60,33],[61,2,61,14],[61,15,61,33],[62,2,62,14],[62,15,62,33],[57,2,57,14],[57,15,57,33],[58,2,59,9],[58,10,58,14],[58,15,58,33],[59,10,59,14],[59,15,59,33],[71,2,72,14],[71,15,72,33],[73,2,74,14],[73,15,74,33],[75,2,76,14],[75,15,76,33],[63,2,63,23],[63,24,63,33],[64,2,64,14],[64,15,64,33],[65,2,66,28],[65,29,66,33],[75,36,76,66],[77,36,78,66],[79,36,85,66],[85,2,86,14],[85,15,86,33],[87,2,88,14],[87,15,88,33],[89,2,90,14],[89,15,90,33],[77,2,78,14],[77,15,78,23],[77,24,78,33],[79,2,80,9],[79,10,80,33],[81,2,81,9],[81,10,81,33],[87,36,90,66],[98,6,98,7],[98,8,98,9],[98,10,98,11],[98,12,98,13],[98,14,98,15],[98,16,98,25],[98,26,98,34],[94,2,95,14],[94,15,95,34],[97,2,97,3],[97,4,97,5],[97,6,97,7],[97,8,97,9],[97,10,97,11],[97,12,97,13],[97,14,97,15],[97,16,97,25],[101,1,104,66],[65,36,66,66],[1,36,2,66],[10,36,12,66],[71,36,72,66],[73,36,74,66],[57,36,59,66],[60,36,61,66],[63,36,63,66],[64,36,64,66],[39,36,43,66],[45,36,46,66],[47,36,50,66],[51,36,53,66],[27,36,27,66],[29,36,30,66],[31,36,34,66],[35,36,36,66],[99,2,99,34],[6,36,7,66],[21,36,21,66],[97,26,97,34],[98,2,98,3],[98,4,98,5]]}
[]
[null,"◇白枠内を入力してください。全て半角・英字大文字で入力してください。",null,null,null,null,null,null,null,null,null,null,null,null,null,null,null,null,null,null,null,null,null,null,null,null,null,null,null,null,null,null,null,null,null,null,"入力見本"]
[null,null," ※途中の項目選択により入力不要となる箇所は灰色で表示されます。"]
[]
[null,"１．送金通貨と金額をご入力ください。"]
[]
[null,null,"①通貨(CURRENCY)",null,null,null,null,null,null,null,null,null,null,null,null,"アメリカドル",null,null,null,null,null,null,null,null,null,null,{"$f":"IFERROR(リスト!C20,\"\")","v":""}]
[null,null,"②金額(REMIT AMOUNT)",null,null,null,null,null,null,null,null,null,null,null,null,123456]
[]
[null,null,"※送金される通貨が外貨建で日本円相当額でのお取扱を希望される場合はこちらを入力ください。"]
[null,null,"③通貨(CURRENCY)",null,null,null,null,null,null,null,null,null,null,null,null,null,null,null,null,null,null,null,null,null,null,null,{"$f":"IFERROR(リスト!C21,\"\")","v":""}]
[null,null,"④金額(AMOUNT)"]
[null,null,"⑤手数料区分"]
[]
[null,"2.ご送金人(ご依頼人)情報をご入力ください"]
[]
[null,null,"⑥名前(NAME)",null,null,null,null,null,null,null,null,null,null,null,null,"CHUSHIN TARO"]
[]
[null,null,"⑦住所(ADDRESS)",null,null,null,null,null,null,null,null,null,null,null,null,"91,KANKOBOKO-CHO,SHIJODORI－MUROMACHI-HIGASHIIRU,SHIMOGYO－KU,KYOTO-CITY,KYOTO,JAPAN"]
[]
[null,null,"⑧送金方法\n(PAYMENT TYPE)",null,null,null,null,null,null,null,null,null,null,null,null,"海外向電信送金"]
[null,null,"⑨支払方法\n(PAYMENT INSTRUCTION)",null,null,null,null,null,null,null,null,null,null,null,null,"通知払"]
[null,null,"⑩支払銀行手数料\n(PAYING BANK CHARGE)",null,null,null,null,null,null,null,null,null,null,null,null,"ご依頼人負担"]
[]
[null,"３.お受取人取引(送金先)銀行をご入力ください"]
[]
[null,null,"⑪銀行名・支店名\n(PAYING BANK・BRANCH)",null,null,null,null,null,null,null,null,null,null,null,null,"JPMORGAN CHASE BANK, N.A",null,null,null,null,null,null,null,null,null,null,null,null,null,null,null,null,null,null,null,null,"　"]
[]
[null,null,"⑫住所(ADDRESS)",null,null,null,null,null,null,null,null,null,null,null,null,"383 MADISON AVENUE　NEW YORK CITY NY"]
[]
[]
[null,null,"⑬国名(COUNTRY)",null,null,null,null,null,null,null,null,null,null,null,null,"アメリカ合衆国 ",null,null,null,null,null,null,null,null,null,null,{"$f":"IFERROR(リスト!C23,\"\")","v":""}]
[null,null,"⑭銀行コード情報\n(SWIFT，ABA，」BIC 等)",null,null,null,null,null,null,null,null,null,null,null,null,"BIC:CHASUS33XXX\n"]
[]
[null,null,"⑮経由銀行\n(INTERMEDIARY BANK)"]
[]
[]
[null,"4.お受取人口座番号(A/C NO.)をご記入ください"]
[]
[null,null,"⑯口座番号(A/C NO.)\n※欧州等向けはIBANコード",null,null,null,null,null,null,null,null,null,null,null,null,"9999999"]
[]
[]
[null,"5.お受取人(送金先)情報をご入力ください"]
[]
[null,null,"⑰受取人名(NAME)",null,null,null,null,null,null,null,null,null,null,null,null,"CHUSHIN CO.,LTD"]
[]
[]
[null,null,"⑱受取人国(COUNTRY)",null,null,null,null,null,null,null,null,null,null,null,null,"アメリカ合衆国 ",null,null,null,null,null,null,null,null,null,null,{"$f":"IFERROR(リスト!$C24,\"\")","v":""}]
[null,null,"⑲受取人住所(ADDRESS)",null,null,null,null,null,null,null,null,null,null,null,null,"383　MADISON AVENUE NEW YORK CITY NY"]
[]
[]
[null,null,"⑳お受取人への連絡事項\n(Information to the recipient)",null,null,null,null,null,null,null,null,null,null,null,null,"INVOICE NO20240401"]
[]
[]
[]
[null,"６．ご送金目的をご入力ください"]
[]
[null,null,"㉑送金目的(PURPOSE)",null,null,null,null,null,null,null,null,null,null,null,null,"輸入"]
[null,null,"㉒送金理由\n(PURPOSE DETAIL)",null,null,null,null,null,null,null,"英語",null,null,null,null,"WOODEN TOYS"]
[null,null,null,null,null,null,null,null,null,null,"日本語",null,null,null,null,"木製のおもちゃ"]
[null,null,"㉓原産地\n(COUNTRY OF ORIGIN)",null,null,null,null,null,null,null,null,null,null,null,null,"USA"]
[null,null,"㉔船積を行った都市名\n(SHIPMENT CITY NAME)",null,null,null,null,null,null,null,null,null,null,null,null,"NEWYORK"]
[null,null,"㉕仕向地\n(Place of destination)",null,null,null,null,null,null,null,null,null,null,null,null,"OSAKA"]
[null,null,"㉖外国為替及び外国貿易法に基づく許可等\n(必要な場合チェック)"]
[null,null,"㉗送金許可番号・日付\n(PERMIT NO. and DATE)"]
[null,null,"㉘「外国為替及び外国貿易法」の北朝鮮・イラン・ウクライナ情勢関連規制等及び「米国OFAC規制等の各国経済制裁関連法令・規制に該当しないことを表明します。"]
[]
[]
[null,"７．(１)送金資金のお支払い口座をご入力ください"]
[]
[]
[null,null,"㉙店番(3桁)\n(BRANCH No.)",null,null,null,null,null,null,null,null,null,null,null,null,"001"]
[]
[null,null,"㉚口座番号(7桁)\n(A/C No.)",null,null,null,null,null,null,null,null,null,null,null,null,"1234567"]
[]
[null,null,"㉛科目\n(TYPE OF　DEPOSIT)",null,null,null,null,null,null,null,null,null,null,null,null,"普通預金"]
[]
[null,null,"㉜引落口座通貨\n(A/C． CURRENCY)",null,null,null,null,null,null,null,null,null,null,null,null,"日本円",null,null,null,null,null,null,null,null,{"$f":"IFERROR(リスト!C22,\"\")","v":""}]
[]
[null,null,"㉝代金決済方法\n(PAYMENT　INSTRCTION)",null,null,null,null,null,null,null,"円貨(スポット)"]
[]
[null,null,"㉞予約番号\n(EXCHANGE CONTRACT NO.)\n"]
[]
[null,null," (２)手数料のお支払い口座をご入力ください"]
[]
[null,null,"㉟店番(3桁)\n(BRANCH No.)"]
[]
[null,null,"㊱口座番号(7桁)\n(A/C No.)"]
[]
[null,null,"㊲科目\n(TYPE OF　DEPOSIT)"]
[]
[]
[null,"８．金融機関への連絡事項"]
[]
[null,null,"㊳金融機関への連絡事項\n(MESSAGE TO BANK)"]
[]
[]
[null,null,1,null,2,null,3,null,4,null,5,null,6,null,7,null,"外為法許可",null,null,null,null,null,null,null,null,null,"外為法規制確認"]
[null,null,{"$f":"N114","v":"〇"},null,{"$f":"IF($K$119=4,\"〇\",\"×\")","v":"〇"},null,{"$f":"IF($K$123=4,\"〇\",\"×\")","v":"〇"},null,{"$f":"IF(P40=\"\",\"×\",\"〇\")","v":"〇"},null,{"$f":"IF($K$130=3,\"〇\",\"×\")","v":"〇"},null,{"$f":"IF(AND($P$58=リスト!E329,$K$136=6),\"〇\",IF(AND($P$58=リスト!E28,$K$136=6),\"○\",IF(AND($P$58=リスト!E30,$K$135=3,$K$137=0),\"○\",\"×\")))","v":"○"},null,{"$f":"IF(AND($I$143=6,$P$78=リスト!$C$4,$K$80=リスト!$G$28),\"〇\",IF(AND($J$143=5,$P$78=リスト!$C$4,$K$80=リスト!G25,$L$143=0),\"〇\",IF(AND($J$143=5,$P$78=リスト!$C$4,$K$80=リスト!G26,$L$143=0),\"〇\",IF(AND($K$143=8,$K$80=リスト!G27,$M$143=0),\"〇\",\"×\"))))","v":"〇"},null,"〇",null,null,null,null,null,null,null,null,null,"〇"]
[null,null,"↑各入力項目の入力漏れ・重複をチェックしています。１～7および外為法関連のチェックが全て〇となっていることをご確認ください。"]
[]
[{"$f":"COUNTIF($B$114:$B$115,\"〇\")","v":2}]
[]
[]
[]
[]
[]
[]
[]
[]
[]
[]
[]
[1,{"$f":"IF($P$7<>\"\",\"〇\",\"×\")","v":"〇"},null,null,null,null,null,null,null,"2024-01-01",{"$f":"COUNTIF($B$114:$B$115,\"〇\")","v":2},null,null,{"$f":"IF(AND($K$114=2,$K$116=0),\"〇\",IF($K$114=1,\"×\",IF($K$116=3,\"〇\",\"×\")))","v":"〇"}]
[2,{"$f":"IF($P$8<>\"\",\"〇\",\"×\")","v":"〇"}]
[3,{"$f":"IF($P$11<>\"\",\"〇\",\"×\")","v":"×"},null,null,null,null,null,null,null,null,{"$f":"COUNTIF($B$116:$B$118,\"〇\")","v":0}]
[4,{"$f":"IF($P$12<>\"\",\"〇\",\"×\")","v":"×"}]
[5,{"$f":"IF(P$13>\"\",\"〇\",\"×\")","v":"×"}]
[6,{"$f":"IF($P$17<>\"\",\"〇\",\"×\")","v":"〇"},null,null,null,null,null,null,null,2,{"$f":"COUNTIF($B$119:$B$123,\"〇\")","v":4}]
[7,{"$f":"IF($P$19<>\"\",\"〇\",\"×\")","v":"〇"}]
[8,{"$f":"IF($P$21<>\"\",\"〇\",\"×\")","v":"〇"}]
[9]
[10,{"$f":"IF($P$23<>\"\",\"〇\",\"×\")","v":"〇"},null,null,null,null,null,null,null,3,{"$f":"COUNTIF($B$124:$B$127,\"〇\")","v":4}]
[11,{"$f":"IF($P$27<>\"\",\"〇\",\"×\")","v":"〇"}]
[12,{"$f":"IF($P$29<>\"\",\"〇\",\"×\")","v":"〇"}]
[13,{"$f":"IF($P$32<>\"\",\"〇\",\"×\")","v":"〇"}]
[14,{"$f":"IF($P$33<>\"\",\"〇\",\"×\")","v":"〇"}]
[15]
[16,null,null,null,null,null,null,null,null,4]
[17,{"$f":"IF($P$45<>\"\",\"〇\",\"×\")","v":"〇"},null,null,null,null,null,null,null,5,{"$f":"COUNTIF($B$130:$B$132,\"〇\")","v":3}]
[18,{"$f":"IF($P$48<>\"\",\"〇\",\"×\")","v":"〇"}]
[19,{"$f":"IF($P$49<>\"\",\"〇\",\"×\")","v":"〇"}]
[20]
[21,{"$f":"IF($P$58<>\"\",\"〇\",\"×\")","v":"〇"}]
["22-①",{"$f":"IF($P$60<>\"\",\"〇\",\"×\")","v":"〇"},null,null,null,null,null,null,null,"外",{"$f":"COUNTIF($B$134:$B$136,\"〇\")","v":3}]
["22-②",{"$f":"IF($P$59<>\"\",\"〇\",\"×\")","v":"〇"},null,null,null,null,null,null,null,null,{"$f":"COUNTIF($B$134:$B$139,\"〇\")","v":6}]
[23,{"$f":"IF($P$61<>\"\",\"〇\",\"×\")","v":"〇"},null,null,null,null,null,null,null,null,{"$f":"COUNTIF($B$137:$B$139,\"〇\")","v":3}]
[24,{"$f":"IF($P$62<>\"\",\"〇\",\"×\")","v":"〇"}]
[25,{"$f":"IF($P$63<>\"\",\"〇\",\"×\")","v":"〇"}]
[26,{"$f":"IF($Y$64<>\"\",\"〇\",\"×\")","v":"×"}]
[27,{"$f":"IF($P$65<>\"\",\"〇\",\"×\")","v":"×"},null,null,null,{"$f":"B141","v":"×"},"○"]
[28,{"$f":"IF($AD$65<>\"\",\"〇\",\"×\")","v":"×"}]
[29,{"$f":"IF($P$72<>\"\",\"〇\",\"×\")","v":"〇"},null,null,null,null,null,null,{"$f":"COUNTIF(A143:B148,\"〇\")","v":5},{"$f":"COUNTIF(A143:B147,\"〇\")","v":5},{"$f":"COUNTIF(B143:B151,\"〇\")","v":5},{"$f":"COUNTIF(B148:B148,\"〇\")","v":0},{"$f":"COUNTIF(C148:C151,\"〇\")","v":0},null,null,"予約以外"]
[30,{"$f":"IF($P$74<>\"\",\"〇\",\"×\")","v":"〇"},null,null,null,null,null,null,null,null,null,null,null,null,null,"予約"]
[31,{"$f":"IF($P$76<>\"\",\"〇\",\"×\")","v":"〇"}]
[32,{"$f":"IF($P$78<>\"\",\"〇\",\"×\")","v":"〇"}]
[33,{"$f":"IF($K$80<>\"\",\"〇\",\"×\")","v":"〇"}]
[34,{"$f":"IF($K$82<>\"\",\"〇\",\"×\")","v":"×"}]
[35,{"$f":"IF($P$86<>\"\",\"〇\",\"×\")","v":"×"}]
[36,{"$f":"IF($P$88<>\"\",\"〇\",\"×\")","v":"×"}]
[37,{"$f":"IF($P$90<>\"\",\"〇\",\"×\")","v":"×"}]

{"sheet":"印刷シート 見本","index":6,"n_rows":61,"n_cols":106,"rows_kept":61,"cut":false,"hidden":false,"merged":[[2,105,3,113],[0,0,0,22],[0,23,0,73],[2,0,2,54],[2,67,2,99],[3,0,3,54],[3,67,3,99],[4,0,5,66],[4,67,4,99],[5,67,5,79],[5,80,5,99],[6,0,6,45],[6,67,6,79],[6,80,6,99],[7,0,9,66],[7,67,7,99],[8,67,9,73],[8,74,9,99],[10,0,10,54],[10,67,10,99],[11,0,11,54],[11,67,11,73],[11,74,11,93],[11,94,11,99],[12,0,12,66],[12,67,12,73],[12,74,12,83],[12,84,12,99],[13,55,13,66],[13,67,13,99],[14,0,16,54],[14,55,16,66],[14,67,14,99],[16,67,16,99],[25,0,25,54],[17,0,17,54],[17,67,17,74],[17,77,17,97],[18,0,18,66],[19,0,19,66],[20,0,20,66],[20,67,20,71],[20,75,20,86],[20,95,20,98],[21,0,21,54],[22,0,23,66],[24,0,24,54],[24,67,24,71],[24,76,24,86],[38,0,38,29],[38,30,38,32],[38,33,38,43],[38,44,38,65],[26,0,27,66],[28,55,28,66],[29,0,31,54],[29,55,31,66],[32,0,32,54],[33,0,34,66],[35,13,35,25],[36,0,36,12],[36,32,36,44],[37,0,37,31],[37,32,37,66],[49,0,50,66],[39,0,39,54],[40,0,40,20],[40,21,40,44],[40,45,40,66],[41,0,41,20],[41,21,41,44],[41,45,41,66],[42,0,42,66],[43,0,43,66],[45,0,46,3],[45,4,46,66],[47,0,48,66]]}
["京都中央信用金庫 御中",null,null,null,null,null,null,null,null,null,null,null,null,null,null,null,null,null,null,null,null,null,null,"外国送金依頼書 兼 告知書",null,null,null,null,null,null,null,null,null,null,null,null,null,null,null,null,null,null,null,null,null,null,null,null,null,null,null,null,null,null,null,null,null,null,null,null,null,null,null,null,null,null,null,null,null,null,null,null,null,null,null,null,null,null,null,null,null,null,null,null,null,null,null,"2024-05-01"]
[]
["ご依頼人様情報",null,null,null,null,null,null,null,null,null,null,null,null,null,null,null,null,null,null,null,null,null,null,null,null,null,null,null,null,null,null,null,null,null,null,null,null,null,null,null,null,null,null,null,null,null,null,null,null,null,null,null,null,null,null,null,null,null,null,null,null,null,null,null,null,null,null,"ご依頼日/ご来店日",null,null,null,null,null,null,null,null,null,null,null,null,null,null,null,null,null,null,null,null,null,null,null,null,null,null,null,null,null,null,null,null,null,null,null,null,null,"印刷シート見本"]
["ご依頼人様英文名\n",null,null,null,null,null,null,null,null,null,null,null,null,null,null,null,null,null,null,null,null,null,null,null,null,null,null,null,null,null,null,null,null,null,null,null,null,null,null,null,null,null,null,null,null,null,null,null,null,null,null,null,null,null,null,null,null,null,null,null,null,null,null,null,null,null,null,"2024-04-01"]
["CHUSHIN TARO",null,null,null,null,null,null,null,null,null,null,null,null,null,null,null,null,null,null,null,null,null,null,null,null,null,null,null,null,null,null,null,null,null,null,null,null,null,null,null,null,null,null,null,null,null,null,null,null,null,null,null,null,null,null,null,null,null,null,null,null,null,null,null,null,null,null,"送金情報"]
[null,null,null,null,null,null,null,null,null,null,null,null,null,null,null,null,null,null,null,null,null,null,null,null,null,null,null,null,null,null,null,null,null,null,null,null,null,null,null,null,null,null,null,null,null,null,null,null,null,null,null,null,null,null,null,null,null,null,null,null,null,null,null,null,null,null,null,"送金種類",null,null,null,null,null,null,null,null,null,null,null,null,"海外向電信送金"]
["ご依頼人様英文住所",null,null,null,null,null,null,null,null,null,null,null,null,null,null,null,null,null,null,null,null,null,null,null,null,null,null,null,null,null,null,null,null,null,null,null,null,null,null,null,null,null,null,null,null,null,null,null,null,null,null,null,null,null,null,null,null,null,null,null,null,null,null,null,null,null,null,"受取人支払方法",null,null,null,null,null,null,null,null,null,null,null,null,"通知払"]
["91,KANKOBOKO-CHO,SHIJODORI-MUROMACHI-HIGASHIIRU,SHIMOGYO-KU,KYOTO-CITY,KYOTO,JAPAN",null,null,null,null,null,null,null,null,null,null,null,null,null,null,null,null,null,null,null,null,null,null,null,null,null,null,null,null,null,null,null,null,null,null,null,null,null,null,null,null,null,null,null,null,null,null,null,null,null,null,null,null,null,null,null,null,null,null,null,null,null,null,null,null,null,null,"送金金額・通貨"]
[null,null,null,null,null,null,null,null,null,null,null,null,null,null,null,null,null,null,null,null,null,null,null,null,null,null,null,null,null,null,null,null,null,null,null,null,null,null,null,null,null,null,null,null,null,null,null,null,null,null,null,null,null,null,null,null,null,null,null,null,null,null,null,null,null,null,null,"USD",null,null,null,null,null,null,{"$f":"'入力シート 見本'!P8","v":123456}]
[]
["お受取人様銀行情報",null,null,null,null,null,null,null,null,null,null,null,null,null,null,null,null,null,null,null,null,null,null,null,null,null,null,null,null,null,null,null,null,null,null,null,null,null,null,null,null,null,null,null,null,null,null,null,null,null,null,null,null,null,null,null,null,null,null,null,null,null,null,null,null,null,null,"円貨相当額を送金してください。"]
["銀行名・支店名",null,null,null,null,null,null,null,null,null,null,null,null,null,null,null,null,null,null,null,null,null,null,null,null,null,null,null,null,null,null,null,null,null,null,null,null,null,null,null,null,null,null,null,null,null,null,null,null,null,null,null,null,null,null,null,null,null,null,null,null,null,null,null,null,null,null,"通貨",null,null,null,null,null,null,{"$f":"入力シート!P12","v":0},null,null,null,null,null,null,null,null,null,null,null,null,null,null,null,null,null,null,null,"円相当"]
["JP MORGAN CHASE BANK,N.A",null,null,null,null,null,null,null,null,null,null,null,null,null,null,null,null,null,null,null,null,null,null,null,null,null,null,null,null,null,null,null,null,null,null,null,null,null,null,null,null,null,null,null,null,null,null,null,null,null,null,null,null,null,null,null,null,null,null,null,null,null,null,null,null,null,null,{"$f":"入力シート!AA11","v":""},null,null,null,null,null,null,"手数料区分",null,null,null,null,null,null,null,null,null,{"$f":"入力シート!P13","v":0}]
[null,null,null,null,null,null,null,null,null,null,null,null,null,null,null,null,null,null,null,null,null,null,null,null,null,null,null,null,null,null,null,null,null,null,null,null,null,null,null,null,null,null,null,null,null,null,null,null,null,null,null,null,null,null,null,"国名",null,null,null,null,null,null,null,null,null,null,null,"支払銀行手数料"]
["383 MADISON AVENUE NEW YORK CITY NY",null,null,null,null,null,null,null,null,null,null,null,null,null,null,null,null,null,null,null,null,null,null,null,null,null,null,null,null,null,null,null,null,null,null,null,null,null,null,null,null,null,null,null,null,null,null,null,null,null,null,null,null,null,null,"United States",null,null,null,null,null,null,null,null,null,null,null,"ご依頼人負担"]
[null,null,null,null,null,null,null,null,null,null,null,null,null,null,null,null,null,null,null,null,null,null,null,null,null,null,null,null,null,null,null,null,null,null,null,null,null,null,null,null,null,null,null,null,null,null,null,null,null,null,null,null,null,null,null,null,null,null,null,null,null,null,null,null,null,null,null,"代金決済方法"]
[null,null,null,null,null,null,null,null,null,null,null,null,null,null,null,null,null,null,null,null,null,null,null,null,null,null,null,null,null,null,null,null,null,null,null,null,null,null,null,null,null,null,null,null,null,null,null,null,null,null,null,null,null,null,null,null,null,null,null,null,null,null,null,null,null,null,null,"円貨（スポット）"]
["銀行コード情報(SWIFT、ABA,BIC等)",null,null,null,null,null,null,null,null,null,null,null,null,null,null,null,null,null,null,null,null,null,null,null,null,null,null,null,null,null,null,null,null,null,null,null,null,null,null,null,null,null,null,null,null,null,null,null,null,null,null,null,null,null,null,null,null,null,null,null,null,null,null,null,null,null,null,"予約番号",null,null,null,null,null,null,null,"(",null,{"$f":"入力シート!K88","v":0},null,null,null,null,null,null,null,null,null,null,null,null,null,null,null,null,null,null,null,null,")"]
["CHASUS33XXX",null,null,null,null,null,null,null,null,null,null,null,null,null,null,null,null,null,null,null,null,null,null,null,null,null,null,null,null,null,null,null,null,null,null,null,null,null,null,null,null,null,null,null,null,null,null,null,null,null,null,null,null,null,null,null,null,null,null,null,null,null,null,null,null,null,null,"送金資金お引落し口座"]
["経由銀行",null,null,null,null,null,null,null,null,null,null,null,null,null,null,null,null,null,null,null,null,null,null,null,null,null,null,null,null,null,null,null,null,null,null,null,null,null,null,null,null,null,null,null,null,null,null,null,null,null,null,null,null,null,null,null,null,null,null,null,null,null,null,null,null,null,null,"店番　",null,null,null,null,null,null,"口座番号",null,null,null,null,null,null,null,null,null,null,null,null,"　　　　口座通貨"]
[null,null,null,null,null,null,null,null,null,null,null,null,null,null,null,null,null,null,null,null,null,null,null,null,null,null,null,null,null,null,null,null,null,null,null,null,null,null,null,null,null,null,null,null,null,null,null,null,null,null,null,null,null,null,null,null,null,null,null,null,null,null,null,null,null,null,null,1,null,null,null,null,null,null,null,1234567,null,null,null,null,null,null,null,null,null,null,null,null,{"$f":"入力シート!P82","v":0},null,null,null,null,null,null,"JPY"]
["お受取人様口座番号(A/C NO.)　※欧州向けの場合はIBAN",null,null,null,null,null,null,null,null,null,null,null,null,null,null,null,null,null,null,null,null,null,null,null,null,null,null,null,null,null,null,null,null,null,null,null,null,null,null,null,null,null,null,null,null,null,null,null,null,null,null,null,null,null,null,null,null,null,null,null,null,null,null,null,null,null,null,"手数料お引落し口座"]
[9999999,null,null,null,null,null,null,null,null,null,null,null,null,null,null,null,null,null,null,null,null,null,null,null,null,null,null,null,null,null,null,null,null,null,null,null,null,null,null,null,null,null,null,null,null,null,null,null,null,null,null,null,null,null,null,null,null,null,null,null,null,null,null,null,null,null,null,"※送金資金お引落し口座と同一の際は入力不要です"]
[null,null,null,null,null,null,null,null,null,null,null,null,null,null,null,null,null,null,null,null,null,null,null,null,null,null,null,null,null,null,null,null,null,null,null,null,null,null,null,null,null,null,null,null,null,null,null,null,null,null,null,null,null,null,null,null,null,null,null,null,null,null,null,null,null,null,null,"店番",null,null,null,null,null,null,null,"口座番号"]
["お受取人様情報",null,null,null,null,null,null,null,null,null,null,null,null,null,null,null,null,null,null,null,null,null,null,null,null,null,null,null,null,null,null,null,null,null,null,null,null,null,null,null,null,null,null,null,null,null,null,null,null,null,null,null,null,null,null,null,null,null,null,null,null,null,null,null,null,null,null,null,null,null,null,null,null,null,null,null,null,null,null,null,null,null,null,null,null,null,null,null,{"$f":"入力シート!P96","v":0}]
["お受取人名"]
["CHUSHIN CO.,LTD"]
[]
["お受取人住所",null,null,null,null,null,null,null,null,null,null,null,null,null,null,null,null,null,null,null,null,null,null,null,null,null,null,null,null,null,null,null,null,null,null,null,null,null,null,null,null,null,null,null,null,null,null,null,null,null,null,null,null,null,null,"国名"]
["383 MADISON AVENUE NEW YORK CITY NY",null,null,null,null,null,null,null,null,null,null,null,null,null,null,null,null,null,null,null,null,null,null,null,null,null,null,null,null,null,null,null,null,null,null,null,null,null,null,null,null,null,null,null,null,null,null,null,null,null,null,null,null,null,null,"United States"]
[]
[]
["お受取人への連絡事項"]
["INVOICE NO20240401"]
[]
["ご送金目的　",null,null,null,null,null,null,null,null,null,null,null,null,{"$f":"入力シート!P64","v":0}]
["英語",null,null,null,null,null,null,null,null,null,null,null,null,null,null,null,null,null,null,null,null,null,null,null,null,null,null,null,null,null,null,null,"日本語"]
["WOODEN TOYS",null,null,null,null,null,null,null,null,null,null,null,null,null,null,null,null,null,null,null,null,null,null,null,null,null,null,null,null,null,null,null,"木製のおもちゃ"]
["外国為替及び外国貿易法による許可等　要",null,null,null,null,null,null,null,null,null,null,null,null,null,null,null,null,null,null,null,null,null,null,null,null,null,null,null,null,null,null,null,null,"許可番号・日付",null,null,null,null,null,null,null,null,null,null,{"$f":"入力シート!P71","v":0}]
["送金目的が輸入もしくは仲介貿易取引の場合、以下もご記入ください。"]
["原産地(国名)",null,null,null,null,null,null,null,null,null,null,null,null,null,null,null,null,null,null,null,null,"船積地(都市名)",null,null,null,null,null,null,null,null,null,null,null,null,null,null,null,null,null,null,null,null,null,null,null,"仕向地(都市名)"]
["USA",null,null,null,null,null,null,null,null,null,null,null,null,null,null,null,null,null,null,null,null,"NEWYORK",null,null,null,null,null,null,null,null,null,null,null,null,null,null,null,null,null,null,null,null,null,null,null,"OSAKA"]
["金融機関への連絡事項"]
[{"$f":"入力シート!P101","v":0}]
[]
[null,null,null,null,"「外国為替及び外国貿易法」の北朝鮮・イラン・ウクライナ情勢関連規制等及び「米国OFAC規制」等の各国経済制裁関連法令・規制に該当しないことを表明します。"]
[]
["規制の内容は京都中央信用金庫ホームページの「外国送金等外国為替取引をご利用のお客様へ」に掲載しています。　\n掲載場所：https://www.chushin.co.jp/business/overseas/customers"]
[]
["貴金庫における当方名義の上記口座から、送金資金および諸手数料を貴金庫所定の日に引落してください。この取扱いにあたり、当座勘定規定、またはその他の預金規定にかかわらず、当座小切手または払戻請求書は提出しません。"]
[]
[]
[]
[]
[]
[]
[]
[]
[]
[]
[null,null,null,null,null,null,null,null,null,null,null,null,null,null,null,null,null,null,null,null,null,null,null,null,null,null,null,null,null,null,null,null,null,null,null,null,null,null,null,null,null,null,null,null,null,null,null,null,null,null,null,null,null,null,null,null,null,null,null,null,null,null,null,null,null,null,null,"公開：2024年5月"]

{"sheet":"変更履歴","index":7,"n_rows":4,"n_cols":4,"rows_kept":4,"cut":false,"hidden":true,"merged":[]}
[]
[null,"変更月","変更内容","Ver.数"]
[null,"2024-05-13","新規利用開始","Ver.1"]
[null,"2024-05-13","外為法規制修正、印刷ボタン削除、経由銀行大文字反映","Ver.1.1"]

{"sheet":"コピペ用","index":8,"n_rows":30,"n_cols":13,"rows_kept":30,"cut":false,"hidden":true,"merged":[[9,8,9,10],[7,8,7,10],[9,3,9,6]]}
[]
[]
[]
[null,"決済銀行"]
[null,"取扱日"]
[null,"取組番号","001-TTR-"]
[]
[null,null,null,null,null,null,null,null,"仕向送金チェックシート精査の上押印する"]
[null,null,null,null,null,null,null,null,"CIF            ―"]
[null,null,null,"市場国際部使用欄",null,null,null,null,"取次店"]
[null,null,null,"発電確認","運用グループ","検印","係印",null,"検印","係印","印鑑照合"]
[]
[]
[]
[]
[]
[]
[]
[null,null,null,null,null,null,null,null,null,null,null,null,"①本人確認≪確認の上、チェック≫"]
[null,null,null,null,null,null,null,null,null,null,null,null,"□公的書類での本人確認済み口座より振替"]
[null,null,null,null,null,null,null,null,null,null,null,null,"□その他(　　　　　　　　　　　　　　　　　)"]
[null,null,null,null,null,null,null,null,null,null,null,null,"②マイナンバー≪確認の上、チェック≫"]
[null,null,null,null,null,null,null,null,null,null,null,null,"□登録済み"]
[null,null,null,null,null,null,null,null,null,null,null,null,"□その他(　　　　　　　　　　　　　　　　　)"]
[null,null,null,null,null,null,null,null,null,null,null,null,"③報告書≪必要な場合チェック≫"]
[null,null,null,null,null,null,null,null,null,null,null,null,"　　□支払又は支払の受領に関する報告書"]
[null,null,null,null,null,null,null,null,null,null,null,null,"　　　(3千万円相当額超の貿易外取引)"]
[null,null,null,null,null,null,null,null,null,null,null,null,"　　□その他(　　　　　　　　　　　　　　　　　　　)"]
[null,null,null,null,null,null,null,null,null,null,null,null,"③外為法等確認事項"]
[null,null,null,null,null,null,null,null,null,null,null,null,"　□仕向送金チェックシートにより確認"]

{"sheet":"TO　DOと改善点","index":9,"n_rows":16,"n_cols":6,"rows_kept":16,"cut":false,"hidden":true,"merged":[[2,1,2,3]]}
[]
[]
[null,"他に整備すること"]
[null,"チェックシートと連動して記入、はんこを減らす。"]
[null,"仕向送金記入例改定"]
[null,"顧客説明マニュアル改定"]
[null,"事務規定チェック"]
[null,"HPに用度搭載"]
[]
[]
[null,"EXCEL改善点"]
[null,"記入ガイド搭載",null,null,null,"検討"]
[null,"印刷ボタン作成",null,null,null,"チェックシートに入れる項目"]
[null,"シートに保護をかける。",null,null,null,"マイナンバー"]
[null,null,null,null,null,"報告書"]
[null,null,null,null,null,"外為法上の許可"]